Workbook

Sheet Welcome Page
D14: Back to Basics, Perfected:
D15: Fresh Fruits, Crisp Vegetables, Fine Wines, Premium Spirits,
D16: and Gourmet Delicacies. | E16: Back to Basics, Perfected: Fresh Fruits, Crisp Vegetables, Fine Wines, Premium Spirits, and Gourmet Delicacies—Your Exclusive, Elegant One-Stop Shop for Yachts and Villas, Where Quality Meets Sophistication.
D17: Your Exclusive, Elegant One-Stop Shop for Yachts and Villas, | E17: Back to Basics, Perfected: Fresh Fruits, Crisp Vegetables, Fine Wines, Premium Spirits, and Gourmet Delicacies—Your Exclusive, Elegant One-Stop Shop for Yachts and Villas, Where Quality Meets Sophistication.
D18: Where Quality Meets Sophistication. | E18: Back to Basics, Perfected: Fresh Fruits, Crisp Vegetables, Fine Wines, Premium Spirits, and Gourmet Delicacies—Your Exclusive, Elegant One-Stop Shop for Yachts and Villas, Where Quality Meets Sophistication.
D20: Dear Valued Clients And Esteemed Chefs,
D22: We Invite You To Explore Our Handpicked Catalog, Thoughtfully Designed To Meet Your Needs.
D23: Please Focus Solely On The Quantity Column For Your Orders.
D24: Kindly Note That Our Prices Are Subject To Change And Do Not Include Taxes.
D26: Wishing You A Memorable Stay In Corsica, And Thank You For Your Understanding.
D28: We Look Forward To Serving You And Ensuring You Have An Excellent Experience!
D30: The Chez Lucette Team
D32: Summary / Sommaire : 2026
D34: 1. Asiatic Premium | E34: 9. Miscellaneous
D35: 2. Caviar & Petrossian Selection | E35: 10. Premium Frozen Meat
D36: 3. Cold Cuts & Deli | E36: 11. Premium Frozen Seafood & Smoked Fish
D37: 4. Cheeses & Dairy | E37: 12. Syrups, Honey, Jam, Tea & Coffee
D38: 5. Valrhona Chocolate | E38: 13. Fresh Fruits & Vegetables
D39: 6. Condiments, Spices, Salts & Peppers | E39: 14. Alcohol & Beers
D40: 7. Frozen: Ice Cream, Pastries, Ice Cream Cakes | E40: 15. Champagne
D41: 8. Italian Premium | E41: 16. Wine Cellar
E42: 17. Soft Drinks, Juices & Water
D44: Your Special Requests : We're on the Case!
D46: For Orders, Please Send Your Completed Forms To :
D47: Orderlucette@gmail.com
D48: Or Contact Dona At +33 06 88 22 94 70
D50: Subtotal: This total excludes fruits, vegetables, TVA and any additional unlisted items.

Sheet Subtotal
F11: SUBTOTAL
B12: 1 | D12: Asiatic Premium | F12: ='Asiatic Premium'!G49 -> 0
B13: =B12+1 -> 2 | D13: Caviar & Petrossian Selection | F13: ='Caviar Petrossian'!G35 -> 0
B14: =B13+1 -> 3 | D14: Cold Cuts & Deli | F14: ='Cold Cuts Deli'!G26 -> 0
B15: 4 | D15: Cheeses & Dairy | F15: ='Cheeses & Dairies'!G46 -> 0
B16: 5 | D16: Valrhona Chocolate | F16: ='Chocolate Valrhona '!G17 -> 0
B17: 6 | D17: Condiments, Spices, Salts & Peppers | F17: ='Condiments, Spices, Salt Peppe '!G63 -> 0
B18: 7 | D18: Frozen: Ice Cream, Pastries, Ice Cream Cakes | F18: ='Frozen Ice Cream Pastries'!G50 -> 0
B19: 8 | D19: Italian Premium | F19: ='Italian Premium'!G75 -> 0
B20: 9 | D20: Miscellaneous | F20: =Miscellaneous!G105 -> 0
B21: 10 | D21: Premium Frozen Meat | F21: ='Premium Frozen Meat'!H62 -> 0
B22: 11 | D22: Premium Frozen Seafood & Smoked Fish | F22: ='Premium Frozen Seafood'!H35 -> 0
B23: 12 | D23: Syrups, Honey, Jam, Tea & Coffee | F23: ='Syrups Honey Jams tea coffee'!G39 -> 0
B24: 13 | D24: Fresh Fruits & Vegetables | F24: - | G24: not included
B25: 14 | D25: Alcohol & Beers | F25: ='Alcohol and Beers'!G62 -> 0
B26: 15 | D26: Champagne | F26: =Champagne!G25 -> 0
B27: 16 | D27: Wine Cellar | F27: =' Wine Cellar'!J39 -> 0
B28: 17 | D28: Soft Drinks, Juices & Water | F28: ='Soft Drinks Juices Water'!G55 -> 0
D30: SUBTOTAL | F30: =SUM(F12:F29) -> 0
B32: Subtotal: This total excludes fruits, vegetables, TVA and any additional unlisted items.

Sheet Asiatic Premium
A1: Sigem | B1: Asiatic Corner | C1: Produits Asiatiques | D1: Qtés | E1: Poids | F1: Prix | G1: Subtotal
D2: Qty | E2: Weight | F2: Price
A3: 4300 | B3: Black Garlic Purée | C3: Purée Ail Noir | E3: 80 g | F3: 26.9 | G3: =F3*D3 -> 0
A4: 4313 | B4: Coconut Milk Sweet | C4: Lait Coco Dessert | E4: 400 ml | F4: 6.5 | G4: =F4*D4 -> 0
A5: 4601 | B5: Coconut Milk Cooking | C5: Lait Coco Cuisine | E5: 400 ml | F5: 6.5 | G5: 0
A6: 4284 | B6: Dashi Liquid Yagissawa | C6: Dashi Liquide Concentré Yagisawa | E6: 360 ml | F6: 26.9 | G6: 0
A7: 4588 | B7: Edamame Soja Frozen | C7: Edamame Congelé | E7: 1 kg | F7: 14.9 | G7: 0
A8: 4317 | B8: Ginger Pink For Sushi | C8: Gingembre Rose Pour Sushi | E8: 380 g | F8: 4.9 | G8: 0
A9: 4646 | B9: Green Curry Paste | C9: Pate De Curry Vert | E9: 400 g | F9: 8.9 | G9: 0
A10: 4288 | B10: Miso Red | C10: Miso Rouge | E10: 500 g | F10: 11.5 | G10: 0
A11: 4287 | B11: Miso White Shiro Miso | C11: Miso Blanc Shiro Miso | E11: 500 g | F11: 11.5 | G11: 0
A12: 4302 | B12: Nori Grilled Premium | C12: Nori Grillé Premium | E12: 50 leaf | F12: 11.5 | G12: 0
A13: 4280 | B13: Mirin | C13: Mirin | E13: 360 ml | F13: 17.5 | G13: 0
A14: 4296 | B14: Panko Bread-crimbs | C14: Chapelure Panko | E14: 200 g | F14: 5.5 | G14: 0
A15: 4297 | B15: Panko Bread-crimbs | C15: Chapelure Panko | E15: 1 kg | F15: 10.9 | G15: 0
A16: 4720 | B16: Red Curry Paste | C16: Pate De Curry Rouge | E16: 400 g | F16: 7.9 | G16: 0
A17: 4320 | B17: Rice Crackers 22 Cm | C17: Galette Riz 22 Cm 40 Feuilles | E17: 400 g | F17: 5.9 | G17: 0
A18: 7038 | B18: Sesame Seeds White | C18: Graines Sésames Blanc | E18: 200 g | F18: 9 | G18: 0
A19: 7035 | B19: Sesame Seeds Black | C19: Graines Sésames Noir | E19: 200 g | F19: 9 | G19: 0
A20: 4270 | B20: Tempura Mix | C20: Melange Tempura | E20: 600 g | F20: 12.5 | G20: 0
A21: 4445 | B21: Tahini Cream | C21: Creme Sesame Tahine | E21: 450 g | F21: 7.5 | G21: 0
A22: 4852 | B22: Tamarind Paste | C22: Pate Tamarin | E22: 454 g | F22: 9.9 | G22: 0
A23: 4305 | B23: Wakame Dried Premium | C23: Wakame Séché Premium | E23: 16 g | F23: 11.9 | G23: 0
A24: 7196 | B24: Wasabi Paste Zakurigi | C24: Pâte Zakurigi Wasabi | E24: 42 g | F24: 5.9 | G24: 0
A25: 4089 | B25: Yuzu Paste | C25: Pâte De Yuzu | E25: 90 g | F25: 12.9 | G25: 0
A26: Sigem | B26: Sauce / Juice / Oil | C26: Sauces / Jus / Huile | D26: Qtés | E26: Poids | F26: Prix
D27: Qty | E27: Weight | F27: Price
A28: 7205 | B28: Nuoc Mâm Sauce | C28: Sauce Nuoc Mâm | E28: 250 ml | F28: 5 | G28: 0
A29: 4323 | B29: Sweet Chili Sauce | C29: Sauce Sweet Chili | E29: 800 g | F29: 5.9 | G29: 0
A30: 7013 | B30: Sweet And Sour Sauce | C30: Sauce Aigre Douce | E30: 720 ml | F30: 9.9 | G30: 0
A31: 7032 | B31: Sesame Black Oil | C31: Huile Sesame Noir | E31: 300 ml | F31: 32.5 | G31: 0
A32: 7028 | B32: Soy Sauce 5 Years Old | C32: Sauce Soja 5 Ans | E32: 200 ml | F32: 53.9 | G32: 0
A33: 7031 | B33: Soy Sauce Sweet Makuchi | C33: Soja Sucree Makuchi 150 Ml | E33: 150 ml | F33: 12.9 | G33: 0
A34: 4275 | B34: Soy Sauce Premium Ohitachi | C34: Sauce Soja Premium Ohitachi | E34: 100 ml | F34: 16.5 | G34: 0
A35: 7040 | B35: Smoked Soy Sauce | C35: Sauce Soja Fumée | E35: 450 g | F35: 32.9 | G35: 0
A36: 4091 | B36: Sauce Sriracha Fort | C36: Sauce Sriracha Fort | E36: 150 g | F36: 3.9 | G36: 0
A37: 4279 | B37: Rice Vinegar For Sushi | C37: Vinaigre Riz Pour Sushi | E37: 360 ml | F37: 15.5 | G37: 0
A38: 4273 | B38: Yuzu Juice Handmade | C38: Jus Yuzu Préssé Main | E38: 200 ml | F38: 29.9 | G38: 0
A39: 4277 | B39: Yuzu & Ponzu Sauce Shibanuma | C39: Sauce Yuzu & Ponzu Shibanuma | E39: 300 ml | F39: 13.5 | G39: 0
A40: Sigem | B40: Rice / Noodles | C40: Riz / Nouilles | D40: Qtés | E40: Poids | F40: Prix
D41: Qty | E41: Weight | F41: Price
A42: 4299 | B42: Noodles Soba Premium | C42: Nouilles Soba Premium Sarrasin | E42: 3 x125 g | F42: 5.5 | G42: 0
A43: 4326 | B43: Rice Vermicelli | C43: Vermicelle Riz | E43: 400 g | F43: 6.9 | G43: 0
A44: 4322 | B44: Sticky Rice | C44: Riz Gluant | E44: 1 kg | F44: 4 | G44: 0
A45: 4324 | B45: Sushi Rice | C45: Riz Sushi | E45: 1 kg | F45: 5.5 | G45: 0
A46: 7176 | B46: Somen Noodles - Flavored with Cherry Leaves | C46: Nouilles Somen-Feuilles des cerisiers | E46: 180 g | F46: 10 | G46: 0
A47: 4677 | B47: Udon Noodles | C47: Nouilles Udon | E47: 230 g | F47: 7.9 | G47: 0
F49: Welcome Page | G49: =SUM(G3:G47) -> 0

Sheet Caviar Petrossian
A1: Sigem Code | B1: Crab / Scallops / Eel | C1: Crabe / St Jacques / Anguille | D1: Qty | E1: Poids / Weight | F1: Prix | G1: Subtotal
F2: Price
A3: 4260 | B3: Kamtchatka Crab's Meat | C3: Chair Crabe Kamtchatka | E3: 200 g | F3: 120 | G3: =F3*D3 -> 0
A4: 4259 | B4: Unshelled Legs Crab Kamtchatka | C4: Pattes Décortiquées Kamtchatka | E4: 200 g | F4: 139 | G4: =F4*D4 -> 0
A5: Sigem Code | B5: Caviar Petrossian | C5: Caviar Petrossian | D5: Qty | E5: Poids / Weight | F5: Prix
F6: Price
A7: 4237 | B7: Steluga Imperial | C7: Steluga Imperial | E7: 50 g | F7: 189 | G7: 0
A8: 4238 | B8: Steluga Imperial | C8: Steluga Imperial | E8: 125 g | F8: 442 | G8: 0
A9: 4235 | B9: Beluga Imperial | C9: Beluga Imperial | E9: 50 g | F9: 530 | G9: 0
A10: 4248 | B10: Beluga Imperial | C10: Beluga Imperial | E10: 125 g | F10: 1320 | G10: 0
A11: 4240 | B11: Daurenki Imperial | C11: Daurenki Imperial | E11: 50 g | F11: 154 | G11: 0
A12: 4241 | B12: Daurenki Imperial | C12: Daurenki Imperial | E12: 125 g | F12: 372 | G12: 0
A13: 4243 | B13: Ossetra Imperial | C13: Ossetra Imperial | E13: 50 g | F13: 154 | G13: 0
A14: 4244 | B14: Ossetra Imperial | C14: Ossetra Imperial | E14: 125 g | F14: 372 | G14: 0
A15: Sigem Code | B15: Foie Gras | C15: Foie Gras | D15: Qty | E15: Poids / Weight | F15: Prix
F16: Price
A17: 4262 | B17: Duck Foie Gras | C17: Foie Gras Canard Entier | E17: 180 g | F17: 65 | G17: 0
A18: 4261 | B18: Goose Foie Gras | C18: Foie Gras Entier Oie | E18: 180 g | F18: 73 | G18: 0
A19: Sigem Code | B19: Salmon | C19: Saumon | D19: Qty | E19: Poids / Weight | F19: Prix
F20: Price
A21: 4253 | B21: Smoked Norway 6 Slices | C21: Fumé & Tranché X 6 | E21: 300 g | F21: 66.9 | G21: 0
A22: 4257 | B22: Salmon Egg Royal Selection | C22: Oeuf Saumon Royal | E22: 50 g | F22: 21 | G22: 0
A23: 4254 | B23: Tsar Smoked Salmon Filet | C23: Saumon Fumé Coupe Du Tsar | E23: 180 g | F23: 48 | G23: 0
A24: Sigem Code | B24: Tarama | C24: Tarama | D24: Qty | E24: Poids / Weight | F24: Prix
F25: Price
A26: 7007 | B26: Tarama With Truffe | C26: Tarama À La Truffe | E26: 100 g | F26: 21 | G26: 0
A27: 4249 | B27: Tarama Caviar | C27: Tarama Caviar | E27: 100 g | F27: 26 | G27: 0
A28: 4250 | B28: Tarama Royal Crab | C28: Tarama Crabe Royal | E28: 100 g | F28: 18 | G28: 0
A29: 4251 | B29: Tarama Nature | C29: Tarama Nature | E29: 100 g | F29: 11 | G29: 0
A30: Sigem Code | B30: Others | C30: Autres | D30: Qty | E30: Poids / Weight | F30: Prix
F31: Price
A32: 4264 | B32: Mini Blinis | C32: Mini Blinis | E32: 18 pcs | F32: 7.9 | G32: 0
A33: 4265 | B33: Poutargua | C33: Poutargue (œuf De Mulet) | E33: 150 g env | F33: 40.5 | G33: 0 | H33: 270 Euros / kg
F35: Welcome Page | G35: =SUM(G3:G33) -> 0

Sheet Cold Cuts Deli
A1: Sigem | B1: Cold Cuts | C1: Charcuterie Tranchée | D1: Qtés | E1: Poids | F1: Price | G1: Subtotal
D2: Qty | E2: Weight
A3: 7221 | B3: Chorizo Jabugo | C3: Chorizo Jabugo | E3: 100 g | F3: 7.5 | G3: =F3*D3 -> 0
A4: 8020 | B4: Coppa Corsican Premium Label | C4: Coppa Artisanale Corse | E4: 500 g | F4: 29.9 | G4: =F4*D4 -> 0
A5: 7223 | B5: Cecina De Leon | C5: Cecina De Leon | E5: 80 g | F5: 15.9 | G5: 0
A6: 4624 | B6: Ham Bellota 100% 5 Jotas | C6: Jambon Bellota 5 Jotas | E6: 70 g | F6: 39.9 | G6: 0
A7: 7222 | B7: Ham Jabugo Triple X Hand Cut | C7: Jambon Jabugo Triple X Coupe À La Main | E7: 80 g | F7: 23.9 | G7: 0
A8: 4839 | B8: Ham Cooked Superior 4 Slices | C8: Jambon Cuit Superieur 4 Tranches | E8: 240 g | F8: 8.2 | G8: 0
A9: 8021 | B9: Lonzo Corsican Premium Label | C9: Lonzo Artisanal Corse | E9: 500 g | F9: 29.9 | G9: 0
A10: 4829 | B10: Mortadelle | C10: Mortadelle | E10: 140 g | F10: 6.2 | G10: 0
A11: 4835 | B11: Raw Ham 20 Slices | C11: Jambon Sec 20 Tranches | E11: 500 g | F11: 29.9 | G11: 0
A12: 4621 | B12: Sausage Slices Jabugo | C12: Saucisson Tranches Jabugo | E12: 100 g | F12: 7.25 | G12: 0
A13: 4374 | B13: Sausage Jabugo | C13: Saucisson Jabugo | E13: 500 g | F13: 22.9 | G13: 0
A14: 4640 | B14: Wagyu Beef Sliced | C14: Boeuf Wagyu | E14: 70 g | F14: 29.9 | G14: 0
A15: Sigem | B15: Delicatessen Iberico | C15: Charcuterie Iberique | D15: Qtés | E15: Poids | F15: Price
D16: Qty | E16: Weight
A17: 7077 | B17: Lean Truffle Sausage | C17: Saucisson Maigre À La Truffe | E17: 200 g | F17: 16.9 | G17: 0
A18: 4576 | B18: Chorizo Pata Negra Spicy | C18: Chorizo Pata Negra Piquant | E18: 220 g | F18: 19.9 | G18: 0
A19: 4563 | B19: Chorizo Pata Negra Spicy | C19: Chorizo Pata Negra Piquant | E19: 70 g | F19: 9.5 | G19: 0
A20: Sigem | B20: Delicatessen Corsican | C20: Charcuterie Corse Artisanale | D20: Qtés | E20: Poids | F20: Estimated | H20: Price by Kilo
D21: Qty | E21: Weight | F21: Price | H21: Prix par Kilo
A22: 7220 | B22: Sausage Premium Label | C22: Saucisson Artisanal | E22: +-500 g | F22: =58*0.5 -> 29 | G22: 0 | H22: 65
A23: 4035 | B23: Coppa Corsican Premium Label | C23: Coppa Artisanale | E23: +-600 g | F23: =58*0.6 -> 34.8 | G23: 0 | H23: 65
A24: 4688 | B24: Lonzo Corsican Premium Label | C24: Lonzo Artisanal | E24: +-1 kg | F24: 58 | G24: 0 | H24: 65
F26: Welcome Page | G26: =SUM(G3:G24) -> 0

Sheet Cheeses & Dairies
A1: Sigem | B1: Cheeses | C1: Fromages | D1: Qtés | E1: Poids | F1: Price | G1: Subtotal
D2: Qty | E2: Weight | F2: Prix
A3: 4590 | B3: Blue Cheese (roquefort) | C3: Roquefort trache AOP | E3: 100 g | F3: 6.9 | G3: =F3*D3 -> 0
A4: 4589 | B4: Brie Of Meaux Farm Style | C4: Brie De Meaux Fermier | E4: 400 g | F4: 19 | G4: =F4*D4 -> 0
A5: 4594 | B5: Camembert Isigny | C5: Camembert Isigny Aop | E5: 250 g | F5: 10.5 | G5: 0
A6: 4571 | B6: Cheddar sliced cheese | C6: Cheddar Tranché | E6: 1 kg | F6: 29.9 | G6: 0
A7: 4572 | B7: Comté AOP 18 months | C7: Comté AOP 18 mois | E7: en coup * | F7: 43 | G7: =F7*D7 -> 0 | H7: per kilo
A8: 4598 | B8: Corsican Cheese Tome | C8: Tome Corse | E8: en coup * | F8: 43 | G8: 0 | H8: per kilo
A9: 4599 | B9: Corsican Cheese Tome Goat | C9: Tome Corse Brebis | E9: en coup * | F9: 43 | G9: 0 | H9: per kilo
A10: 4600 | B10: Emmental Grounded | C10: Emmental Râpé | E10: 1 kg | F10: 18.7 | G10: 0
A11: 4557 | B11: Feta Cheese | C11: Feta | E11: 400 g | F11: 16.5 | G11: 0
A12: 7078 | B12: Goat Cheese | C12: Tommette Chevre | E12: en coup * | F12: 31.9 | G12: 0 | H12: per kilo
A13: 4861 | B13: Goat Cheese Ashen | C13: Selles Sur Cher Cendrée Aop | E13: 150 g | F13: 13.8 | G13: 0
A14: 4862 | B14: Goat Cheese White | C14: Sainte Maure Blanc Aoc | E14: 200 g | F14: 15.8 | G14: 0
A15: 7046 | B15: Haloumi | C15: Haloumi | E15: 250 g | F15: 8.9 | G15: 0
A16: 4802 | B16: Philadelphia | C16: Philadelphia | E16: 300 g | F16: 7.9 | G16: 0
A17: 7127 | B17: St Felicien ( Cream Cheese Style) | C17: St Felicien Fermier | E17: 180 g | F17: 10.9 | G17: 0
A18: 4392 | B18: Tofu Firm | C18: Tofu Ferme | E18: 300 g | F18: 4.9 | G18: 0
A19: Sigem | B19: Dairies | C19: Produits Laitiers | D19: Qtés | E19: Poids | F19: Prix
D20: Qty | E20: Weight | F20: Price
A21: 4568 | B21: Butter 1/2 Salt | C21: Beurre Echire 1/2 Sel | E21: 250 g | F21: 9.9 | G21: 0
A22: 4569 | B22: Butter Unsalted | C22: Beure Doux Echire | E22: 250 g | F22: 9.9 | G22: 0
A23: 4550 | B23: Double Cream 35 % | C23: Créme Double 35 % | E23: 1 l | F23: 14.5 | G23: 0
A24: 4673 | B24: Fresh Eggs Organic | C24: Oeufs Frais Bio | E24: Unit | F24: 0.99 | G24: 0
A25: 4551 | B25: Fresh Milk 1/2 | C25: Lait Frais Demi | E25: 1 l | F25: 4.2 | G25: 0
A26: 4552 | B26: Fresh Milk Intero | C26: Lait Frais Entier | E26: 1 l | F26: 4.2 | G26: 0
A27: 4858 | B27: Filo Pastry | C27: Pâte Filo | E27: 500 g | F27: 5.9 | G27: 0
A28: 4565 | B28: Ghee Butter | C28: Beurre Ghee Clarifié | E28: 400 g | F28: 21.5 | G28: 0
A29: 4203 | B29: Greek Yogurt | C29: Yahourt À La Grecque | E29: 500 g | F29: 6.9 | G29: 0
A30: 4553 | B30: Greek Yogurt | C30: Yahourt À La Grecque | E30: 125 g | F30: 2.8 | G30: 0
A31: 4554 | B31: Greek Yogurt Kolios | C31: Yahourt À La Grecque Kolios | E31: 150 g | F31: 2.5 | G31: 0
A32: 4949 | B32: Milk Full Long Conservation 1 l | C32: Lait Uht Entier 1 l | E32: 1 l X 6 | F32: 17.8 | G32: 0
A33: 4970 | B33: Milk Semi Long Conservation 1 l | C33: Lait Uht Demi-écrémé 1 l | E33: 1 l X 6 | F33: 17.5 | G33: 0
A34: 4619 | B34: Quail Eggs Fresh | C34: Œufs De Caille Frais | E34: X 18 | F34: 6.5 | G34: 0
A35: Sigem | B35: Dairies - Bodier | C35: Produits Laitiers - Bordier | D35: Qtés | E35: Poids | F35: Prix
D36: Qty | E36: Weight | F36: Price
A37: 7011 | B37: Butter 1/2 Salted | C37: Beuure Plaquette 1/2 Sel | E37: 250 g | F37: 9.9 | G37: 0
A38: 7010 | B38: Butter Unsalted | C38: Beurre Doux Plaquette | E38: 250 g | F38: 9.9 | G38: 0
A39: 7020 | B39: Yoghurt Plain/nature | C39: Yaourts Nature | E39: 125 g | F39: 2.5 | G39: 0
A40: 7019 | B40: Yoghurt Fruits Mango/passion Fruit /pitaya | C40: Yaourts Fruits Mangue/passsion/pitaya | E40: 125 g | F40: 2.9 | G40: 0
A41: 7019 | B41: Yoghurt Fruits Raspberry | C41: Yaourts Fruits Framboise | E41: 125 g | F41: 2.9 | G41: 0
A42: 7019 | B42: Yoghurt Fruits Blueberry | C42: Yaourts Fruits Myrtilles | E42: 125 g | F42: 2.9 | G42: 0
A43: 7019 | B43: Yoghurt Fruits Coconut | C43: Yaourts Fruits Noix De Coco | E43: 125 g | F43: 2.9 | G43: 0
A44: 7019 | B44: Yoghurt Vanilla Glass Jar | C44: Yaourt Vanille | E44: 125 g | F44: 2.9 | G44: 0
A46: en coup * | B46: Please enter the desired amount/weight | F46: Welcome Page | G46: =SUM(G3:G44) -> 0
B47: Merci d’indiquer la quantité/poids souhaité

Sheet Chocolate Valrhona
A1: Sigem | B1: Valrhona Chocolate Beans | C1: Valrhona Feves | D1: Qty | E1: Poids / Weight | F1: Prix | G1: Subtotal
F2: Price
A3: 4222 | B3: Cocoa Powder | C3: Poudre Cacao | E3: 250 g | F3: 21 | G3: =F3*D3 -> 0
A4: 4221 | B4: Guajana 70 % Dark Chocolate Drops / Chips | C4: Guajana 70% Dark Chocolate Fèves | E4: 1 kg | F4: 53 | G4: =F4*D4 -> 0
A5: 4027 | B5: Ivory 35% | C5: Ivoire 35% | E5: 1 kg | F5: 53 | G5: 0
A6: 4056 | B6: Dulcey 35% | C6: Dulcey 32% | E6: 1 kg | F6: 53 | G6: 0
A7: Sigem | B7: Valrhona Gift Box | C7: Coffret Dégustation | D7: Qty | E7: Poids / Weight | F7: Prix
F8: Price
A9: 4311 | B9: 32 Dark and Milk Chocolates Square | C9: 32 Carre de Chocolat Noir et Lait | E9: 160 g | F9: 29.9 | G9: 0
A10: 4223 | B10: Gift Box - Chocolated-coated Almond and Hazelnut | C10: Coffret Amande et Noisette enrobées Chocolat | E10: 300 g | F10: 35 | G10: 0
A11: Sigem | B11: Sosa : Kosher | C11: Sosa : Kosher | D11: Qty | E11: Poids / Weight | F11: Prix
F12: Price
A13: 4405 | B13: Agar-agar | C13: Agar-agar | E13: 500 g | F13: 73.9 | G13: 0
A14: 4545 | B14: Lecithine Soja | C14: Lecithine Soja | E14: 400 g | F14: 42.9 | G14: 0
A15: 4369 | B15: Vanilla Pods | C15: Vanille Gousse | E15: 3 Sticks | F15: 15 | G15: 0
F17: Welcome Page | G17: =SUM(G3:G15) -> 0

Sheet Condiments, Spices, Salt Peppe
A1: Sigem | B1: Condiments | C1: Condiments | D1: Qtés | F1: Prix | G1: Subtotal
D2: Qty | E2: Weight | F2: Price
A3: 7163 | B3: Bbq Sauce Cowboy | C3: Bbq Sauce Cowboy | E3: 300 ml | F3: 6.9 | G3: =F3*D3 -> 0
A4: 7201 | B4: Gherkins | C4: Cornichons | E4: 190 g | F4: 3.2 | G4: =F4*D4 -> 0
A5: 4494 | B5: Gherkins Sweet & Sour | C5: Cornichons Aigre-doux | E5: 900 ml | F5: 6.2 | G5: 0
A6: 4062 | B6: Harissa From Tunisia Pot | C6: Harissa Tunise Pot | E6: 85 g | F6: 9.9 | G6: 0
A7: 3001 | B7: Mustard Grain Dupont | C7: Moutarde Grain Dupont | E7: 195 g | F7: 8.9 | G7: 0
A8: 3005 | B8: Mustard White Dupont | C8: Moutarde Blanc Dupont | E8: 195 g | F8: 8.9 | G8: 0
A9: Sigem | B9: Cooking | C9: Cusine | D9: Qtés | E9: Poids | F9: Prix
D10: Qty | E10: Weight | F10: Price
A11: 4312 | B11: Red Wine | C11: Vin Rouge Cuisine | E11: 25 cl | F11: 2.2 | G11: 0
A12: 4131 | B12: Vanilla Madagascar Powder | C12: Vanille Madagascar Poudre | E12: 20 g | F12: 18.9 | G12: 0
A13: 4312 | B13: White Wine | C13: Vin Blanc Cuisine | E13: 25 cl | F13: 2.2 | G13: 0
A14: Sigem | B14: Flour | C14: Farine | D14: Qtés | E14: Poids | F14: Prix
D15: Qty | E15: Weight | F15: Price
A16: 4513 | B16: Flour Type T 55 | C16: Farine T 55 | E16: 1 kg | F16: 3.5 | G16: 0
A17: 4513 | B17: Flour Type 00 | C17: Farine Type 00 | E17: 1 kg | F17: 3.5 | G17: 0
A18: Sigem | B18: Juice And Stock | C18: Jus Et Bouillon | D18: Qtés | E18: Poids | F18: Prix
D19: Qty | E19: Weight | F19: Price
A20: 4017 | B20: Ariake Beef Juice | C20: Ariake Jus De Boeuf | E20: 400 ml | F20: 22.9 | G20: 0
A21: 4066 | B21: Ariake Poultry Juice | C21: Ariake Jus De Volaille | E21: 400 ml | F21: 22.9 | G21: 0
A22: 4064 | B22: Ariake Shellfish Bouillon | C22: Ariake Bouillon de Crustaces | E22: 5 x 55 g | F22: 39.1 | G22: 0
A23: 4065 | B23: Ariake Veal Juice | C23: Ariake Jus De Veau | E23: 400 ml | F23: 29.9 | G23: 0
A24: 4054 | B24: Stock Chicken | C24: Fond De Volaille | E24: 100 g | F24: 12.9 | G24: 0
A25: 4054 | B25: Stock Fish | C25: Fond Fumet De Poisson | E25: 100 g | F25: 12.9 | G25: 0
A26: 4054 | B26: Stock Veal | C26: Fond De Veau | E26: 100 g | F26: 12.9 | G26: 0
A27: Sigem | B27: Salt And Pepper | C27: Sel Et Poivre | D27: Qtés | E27: Poids | F27: Prix
D28: Qty | E28: Weight | F28: Price
A29: 4103 | B29: Black Pepper Kampot | C29: Poivre Noir Kampot | E29: 70 g | F29: 11.9 | G29: 0
A30: 7118 | B30: Cayenne Pepper | C30: Piment De Cayenne | E30: 55 g | F30: 9.5 | G30: 0
A31: 4104 | B31: Long Pepper | C31: Poivre Long | E31: 50 g | F31: 9.9 | G31: 0
A32: 4099 | B32: White Pepper From Penja | C32: Poivre Blanc De Penja | E32: 70 g | F32: 11.9 | G32: 0
A33: 4362 | B33: Maldon Salt | C33: Sel De Maldon | E33: 250 g | F33: 11.9 | G33: 0
A34: 4363 | B34: Maldon Salt Smoked | C34: Sel De Maldon Fume | E34: 125 g | F34: 10.9 | G34: 0
A35: 4474 | B35: Salt Flower | C35: Fleur De Sel | E35: 125 g | F35: 7.5 | G35: 0
A36: 4093 | B36: Salt Guerande | C36: Sel De Guerande | E36: 1 kg | F36: 4.4 | G36: 0
A37: 7054 | B37: Thin Pink Salt Of Himalaya Crystal | C37: Sel Rose Cristaux Himalaya | E37: 1 kg | F37: 6 | G37: 0
A38: Sigem | B38: Spices, Seeds And Aromas | C38: Épices, Graines Et Arômes | D38: Qtés | E38: Poids | F38: Prix
D39: Qty | E39: Weight | F39: Price
A40: 4004 | B40: Black Garlic | C40: Ail Noir | E40: 55 g | F40: 21.9 | G40: 0
A41: 4940 | B41: Candied Lemon | C41: Citron Confit | E41: 680 g | F41: 7.2 | G41: 0
A42: 4020 | B42: Cardamone Green | C42: Cardamanone Verte | E42: 40 g | F42: 10.5 | G42: 0
A43: 4443 | B43: Chia Seeds | C43: Graines De Chia | E43: 90 g | F43: 6.5 | G43: 0
A44: 4129 | B44: Cinnamon Sticks | C44: Cannelle Bâton | E44: 4 g | F44: 6.5 | G44: 0
A45: 4019 | B45: Cinnamon Powder | C45: Cannelle Poudre | E45: 20 g | F45: 8.9 | G45: 0
A46: 4085 | B46: Colombo Paste | C46: Pâte De Colombo | E46: 85 g | F46: 9.9 | G46: 0
A47: 4028 | B47: Combava Ground | C47: Combava Poudre | E47: 30 g | F47: 11.5 | G47: 0
A48: 4950 | B48: Coriander Grounded | C48: Coriandre Poudre Moulu | E48: 50 g | F48: 7.9 | G48: 0
A49: 4041 | B49: Cumin Organic Grounded | C49: Cumin Moulu Bio | E49: 60 g | F49: 8.9 | G49: 0
A50: 4042 | B50: Curcuma / Turmeric | C50: Curcuma / Turmeric | E50: 60 g | F50: 7.5 | G50: 0
A51: 4059 | B51: Ground Ginger | C51: Gingembre En Poudre | E51: 50 g | F51: 7.9 | G51: 0
A52: 4058 | B52: Jelly Spice Espelette | C52: Gelée Piment Espelette Aoc | E52: 90 g | F52: 12.5 | G52: 0
A53: 4953 | B53: Oregano | C53: Origan | E53: 30 g | F53: 10.9 | G53: 0
A54: 4110 | B54: Raz El Hanout | C54: Raz El Hanout | E54: 60 g | F54: 9.5 | G54: 0
A55: 4111 | B55: Safron Powder | C55: Safran Poudre | E55: 5 g | F55: 11.9 | G55: 0
A56: 4095 | B56: Spice Powder Espelette | C56: Piment Espelette Poudre | E56: 50 g | F56: 13.5 | G56: 0
A57: 4051 | B57: Tonka Feves | C57: Fêve Tonka | E57: 50 g | F57: 12.5 | G57: 0
A58: Sigem | B58: Sugar | C58: Sucre | D58: Qtés | E58: Poids | F58: Prix
D59: Qty | E59: Weight | F59: Price
A60: 4125 | B60: Brown Sugar | C60: Sucre Roux Nature | E60: 1 kg | F60: 8.5 | G60: 0
A61: 4123 | B61: Moscovado Sugar | C61: Sucre Moscovado | E61: 200 g | F61: 7.9 | G61: 0
F63: Welcome Page | G63: =SUM(G3:G61) -> 0

Sheet Frozen Ice Cream Pastries
A1: Sigem | B1: Frozen Miscellaneous | C1: Congelé Divers | D1: Qtés | E1: Poids | F1: Prix | G1: Subtotal
D2: Qty | E2: Weight | F2: Price
A3: 4586 | B3: Bun Burger Classic 12 cm | C3: Pain Burger Classic 12 cm | E3: x 6 | F3: 13.2 | G3: =F3*D3 -> 0
A4: 4422 | B4: Bun Burger Sesame 12 cm | C4: Pain Burger Sesame 12 cm | E4: x 6 | F4: 14.2 | G4: =F4*D4 -> 0
A5: 8008 | B5: Baguette Sandwich 140 g | C5: Baguette Sandwich 140 g | E5: x 3 | F5: 4.3 | G5: 0
A6: 8007 | B6: Ciabatta Olive Oil 50 g | C6: Ciabatta Huile Olive 50 g | E6: unité | F6: 0.85 | G6: 0
A7: 4424 | B7: Sourdough Bread 50 g | C7: Pain Levain 50 g | E7: x 60 | F7: 52.9 | G7: 0
A8: 4562 | B8: Mini Danish Roll | C8: Mini Pain Raisin Beurre A.O.P | E8: bag : 55 pcs | F8: 62.5 | G8: 0
A9: 4561 | B9: Mini Chocolate Pan | C9: Mini Pain Chocolat Beurre A.O.P | E9: bag : 70 pcs | F9: 73.5 | G9: 0
A10: 4560 | B10: Mini Croissant | C10: Mini Croissant Beurre A.O.P | E10: bag : 65 pcs | F10: 62.5 | G10: 0
A11: 4974 | B11: Pancake 11 cm | C11: Pancake 11 cm | E11: x 8 | F11: 9.9 | G11: 0
A12: 4683 | B12: French Fries Mc Cain | C12: Frites Mc Cain | E12: 2.5 kg | F12: 12.9 | G12: 0
A13: 4684 | B13: Peas | C13: Petit Pois | E13: 2.5 kg | F13: 10.9 | G13: 0
A14: 7003 | B14: Spinach | C14: Epinard | E14: 2.52 kg | F14: 15.9 | G14: 0
A15: Sigem | B15: Frozen Fruits Purée | C15: Purée Fruits Congelées | D15: Qtés | E15: Poids | F15: Prix
D16: Qty | E16: Weight | F16: Price
A17: 4165 | B17: Lemon | C17: Citron | E17: 1 kg | F17: 19.9 | G17: 0
A18: 4166 | B18: Lime | C18: Citron Vert | E18: 1 kg | F18: 21.9 | G18: 0
A19: 4171 | B19: Passion Fruit | C19: Fruit Passion | E19: 1 kg | F19: 25.9 | G19: 0
A20: 4169 | B20: Mango | C20: Mangue | E20: 1 kg | F20: 24.9 | G20: 0
A21: 4173 | B21: Strawberry | C21: Fraise | E21: 1 kg | F21: 19.9 | G21: 0
A22: 4174 | B22: Raspbery | C22: Framboise | E22: 1 kg | F22: 27.9 | G22: 0
A23: Sigem | B23: Artisanal Ice Cream | C23: Glaces Artisanales | D23: Qtés | E23: Poids | F23: Prix
D24: Qty | E24: Weight | F24: Price
A25: 4549 | B25: Ice Cream Caramel & Salted Butter | C25: Glace Arti. Caramel & Beurre Salé | E25: 55 cl | F25: 11.9 | G25: 0
A26: 4549 | B26: Ice Cream Sorbet Mango | C26: Sorbet Artisanal Mangue | E26: 55 cl | F26: 11.9 | G26: 0
A27: 4549 | B27: Ice Cream Sorbet Corsican Clémentines | C27: Sorbet Artisanal Clémentine Corse | E27: 55 cl | F27: 11.9 | G27: 0
A28: 4549 | B28: Ice Cream Vanilla Tahiti | C28: Glace Artisanale Vanille Tahiti | E28: 55 cl | F28: 11.9 | G28: 0
A29: 4549 | B29: Ice Cream Chocolat | C29: Glace Artisanale Chocolat | E29: 55 cl | F29: 11.9 | G29: 0
A30: 4549 | B30: Ice Cream Straciatella | C30: Glace Artisanale Stracciatella | E30: 55 cl | F30: 11.9 | G30: 0
A31: 4549 | B31: Ice Cream Sorbet Corsican Strawberry | C31: Sorbet Artisanal Fraise Corse | E31: 55 cl | F31: 11.9 | G31: 0
A32: 4549 | B32: Ice Cream Yoghurt | C32: Glace Artisanale Yahourt | E32: 55 cl | F32: 11.9 | G32: 0
A33: 4549 | B33: Ice Cream Sorbet Organic Corsican Lemon | C33: Sorbet Citron Corse Bio | E33: 55 cl | F33: 11.9 | G33: 0
A34: 4549 | B34: Ice Cream Sicilian Pistacchio | C34: Glace Artisanale Pistache Sicile | E34: 55 cl | F34: 11.9 | G34: 0
A35: 4549 | B35: Ice Cream Sorbet Coco | C35: Sorbet Artisanale Coco | E35: 55 cl | F35: 11.9 | G35: 0
A36: 4549 | B36: Ice Cream Sorbet Framboise | C36: Sorbet Artisanale Framboise | E36: 55 cl | F36: 11.9 | G36: 0
A37: Sigem | B37: Artisanal Ice Cream Cake | C37: Gâteaux a la Glace - Artisanales | D37: Qtés | E37: Poids | F37: Prix
D38: Qty | E38: Weight | F38: Price
A39: 4450 | B39: Profiteroles - Vanilla Madagascar, Puff Pastry, Chocolate Sauce and Whipped Cream | C39: Profiteroles - Glace de Madagascar, Choux Croustillanbts , Sauce Chocolate, Chantilly | E39: 10 pax | F39: 44 | G39: =F39*D39 -> 0
A40: 4458 | B40: Bastia Cervioni - Hazelnut Ice Cream from Cervioni, Crispy Choux Pastry, Royal Hazelnut Sauce, Chocolate Sauce, Dulce Hazelnut, Chopped Hazelnuts, Meringue. | C40: Bastia Cervioni - Glace Noisette de Cervioni, Pâte à Choux Croustillante, Sauce Noisette Royale, Sauce Chocolat, Dulce Noisette, Noisettes Hachées, Meringue. | E40: 10 pax | F40: 44 | G40: 0
A41: 4459 | B41: Chocoline - Gianduja Ice Cream, Hazelnut Ice Cream from Piedmont, Royal Chocolate Sauce. | C41: Chocoline - Glace Gianduja, Glace Noisette du Piémont, Sauce Chocolat Royale. | E41: 10 pax | F41: 46 | G41: 0
A42: 4501 | B42: Sorbet - 100% Corse - Corsican Lemon Sorbet, Corsican Clementine Sorbet, Corsican Strawberry Sorbet, Meringue. | C42: Sorbet - 100% Corse - Sorbet Citron Corse, Sorbet Clémentine Corse, Sorbet Fraise Corse, Meringue. | E42: 10 pax | F42: 42 | G42: 0
F50: Welcome Page | G50: =SUM(G3:G42) -> 0

Sheet Italian Premium
A1: Sigem | B1: Antipasti & Biscuits | C1: Antipasti & Biscuits | D1: Qtés | E1: Poids | F1: Prix | G1: Subtotal
D2: Qty | E2: Weight | F2: Price
A3: 7085 | B3: Artichokes Slices Gina & Leo | C3: Artichauts Tranchés Gine & Leo | E3: 280 g | F3: 9.9 | G3: =F3*D3 -> 0
A4: 7103 | B4: Artichokes In Oil | C4: Artichauts À L'huile | E4: 290 g | F4: 21.9 | G4: =F4*D4 -> 0
A5: 7097 | B5: Carasau Bread | C5: Pain Carasau | E5: 450 g | F5: 12.9 | G5: 0
A6: 4489 | B6: Capers Stem With Tail Gina & Leo | C6: Capres Tiges A Queue Gina & Leo | E6: 300 g | F6: 10.1 | G6: 0
A7: 4490 | B7: Capers In Vinegar Gina & Leo | C7: Capres En Vinaigre Gina & Leo | E7: 150 g | F7: 8.3 | G7: 0
A8: 7089 | B8: Ghiotina Rosemary | C8: Ghiotina Romarin | E8: 150 g | F8: 4.9 | G8: 0
A9: 7090 | B9: Ghiotina Green Olive | C9: Ghiotina Olive Verte | E9: 150 g | F9: 4.9 | G9: 0
A10: 7091 | B10: Gressini Butter | C10: Gressin Au Beurre | E10: 200 g | F10: 7.1 | G10: 0
A11: 7092 | B11: Gressini Olive | C11: Gressin Olive | E11: 200 g | F11: 7.1 | G11: 0
A12: 4990 | B12: Gressini Sesame | C12: Gressin Sesame | E12: 250 g | F12: 7.1 | G12: 0
A13: 7094 | B13: Olive Green Sicilia Tentazioni | C13: Olive Verte Sicile Tentazioni | E13: 270 g | F13: 9.5 | G13: 0
A14: 7093 | B14: Olive Bella Cerignola | C14: Olive Bella Cerignola | E14: 280 g | F14: 5 | G14: 0
A15: 4463 | B15: Olive Taggiashe Black Pitted | C15: Olives Taggiashe Dénoyautés | E15: 90 g | F15: 7 | G15: 0
A16: 7095 | B16: Pepper Yellow & Red Gina & Leo | C16: Poivron Jaune Et Rouge Gina & Leo | E16: 280 g | F16: 9.7 | G16: 0
A17: 4885 | B17: Pesto Rosso Baita | C17: Pesto Rouge Baita | E17: 170 g | F17: 11.9 | G17: 0
A18: 4984 | B18: Pesto Basilico Ligure Baita | C18: Pesto Basilico Ligure Baita | E18: 520 g | F18: 12.1 | G18: 0
A19: 4985 | B19: Tomato San Marzano ( Tins) | C19: Tomate San Marzano (conserve) | E19: 400 g | F19: 6.7 | G19: 0
A20: 7096 | B20: Tomato Sundried Giovagnini | C20: Tomaté Séchées Giovagnini | E20: 290 g | F20: 8.3 | G20: 0
A21: 4959 | B21: Tomato Sauce Passata Organic | C21: Tomate Coulis Passata Bio | E21: 680 g | F21: 7.4 | G21: 0
A22: Sigem | B22: Vinegar Balsamic | C22: Vinaigre Balsamique | D22: Qtés | E22: Poids | F22: Prix
D23: Qty | E23: Weight | F23: Price
A24: 7142 | B24: Balsamic White Gina & Leo | C24: Balsamique Blanc Gina & Leo | E24: 250 ml | F24: 17.7 | G24: 0
A25: 4400 | B25: Balsamic White Cream | C25: Balsamique Creame Blanche | E25: 250 ml | F25: 8.6 | G25: 0
A26: 4711 | B26: Balsamic Cream Of Modena | C26: Creme Balsamique Modène | E26: 250 ml | F26: 10.6 | G26: 0
A27: 4628 | B27: Gina & Leo Tradizionale Igp | C27: Gina & Leo Igp | E27: 250 ml | F27: 22.2 | G27: 0
A28: 4500 | B28: 15 Years Old Dop Tradizionale | C28: 12 Ans D'age Dop | E28: 100 ml | F28: 99 | G28: 0
A29: 4112 | B29: 30 Years Old Dop Tradizionale | C29: 30 Ans D'age Dop | E29: 100 ml | F29: 199 | G29: 0
A30: Sigem | B30: Cheeses | C30: Fromages | D30: Qtés | E30: Poids | F30: Prix
D31: Qty | E31: Weight | F31: Price
A32: 4591 | B32: Burratina | C32: Burratina | E32: 150 g | F32: 6.9 | G32: 0
A33: 8023 | B33: Burrata With Truffle | C33: Burratta À La Truffe | E33: 125 g | F33: 7.5 | G33: 0
A34: 4993 | B34: Gorgonzola Dop Mild | C34: Gorgonzola Dop Doux | E34: 200 g | F34: 7.5 | G34: 0
A35: 4607 | B35: Mozzarella Buffala | C35: Mozzarella Buffala | E35: 250 g | F35: 11.8 | G35: 0
A36: 4100 | B36: Mozarella Diced | C36: Mozzarella En Des | E36: 2,5 kg | F36: 31.9 | G36: 0
A37: 4639 | B37: Mascarpone | C37: Mascarpone | E37: 250 g | F37: 6.5 | G37: 0
A38: 4612 | B38: Ricotta Cheese | C38: Ricotta Cheese | E38: 250 g | F38: 4.9 | G38: 0
A39: 4109 | B39: Pecorino Romano | C39: Pécorino Romano | E39: 250 g | F39: 16.5 | G39: 0
A40: 7106 | B40: Parmegiano Reggiano 24 Months | C40: Parmesan Regiano 24 Mois | E40: 500 g | F40: 60 | G40: 0
A41: 7147 | B41: Parmegiano Reggiano 36 Months | C41: Parmesan Reggiano 36 Mois | E41: 250 g | F41: 70 | G41: 0
A42: 4983 | B42: Parmegiano Reggiano Shaved Flakes Dop | C42: Parmesan Reggiano Copeaux Dop | E42: 500 g | F42: 24.9 | G42: 0
A43: 7105 | B43: Parmegiano Grated Reggiano | C43: Parmesan Rapé Reggiano | E43: 500 g | F43: 20.5 | G43: 0
A44: Sigem | B44: Delicatessen & Cold Cuts | C44: Charcuterie & Tranchée | D44: Qtés | E44: Poids | F44: Prix
D45: Qty | E45: Weight | F45: Price
A46: 4987 | B46: Bressaola Sliced Maletti | C46: Bressaola Tranchée Maletti | E46: 90 g | F46: 14.9 | G46: 0
A47: 4318 | B47: Nduja Di Spilinga | C47: Nduja Di Spilinga ( Chorizo À Tartiner) | E47: 170 g | F47: 9.7 | G47: 0
A48: 4989 | B48: Pancetta Organic In Cube | C48: Pancette Bio En Cubes | E48: 100 g | F48: 5.8 | G48: 0
A49: 7084 | B49: Parma Ham Maletti Dop | C49: Jambon Parme Maletti Dop | E49: 90 g | F49: 13.3 | G49: 0
A50: Sigem | B50: Fresh Pasta | C50: Pâtes Fraiches | D50: Qtés | E50: Poids | F50: Prix
D51: Qty | E51: Weight | F51: Price
A52: 4998 | B52: Gnocchi | C52: Gnocchi Pomme De Terre | E52: 500 g | F52: 4.9 | G52: 0
A53: 4999 | B53: Tagliatelle Fontaneto | C53: Tagliatelle Fontaneto | E53: 250 g | F53: 3.9 | G53: 0
A54: Sigem | B54: Pasta Dry Home Made | C54: Pâtes Artisanales | D54: Qtés | E54: Poids | F54: Prix
D55: Qty | E55: Weight | F55: Price
A56: 4204 | B56: Farfalle | C56: Farfalle | E56: 500 g | F56: 4.3 | G56: 0
A57: 4119 | B57: Fusilli Rustichella | C57: Fusilli Rustichella | E57: 500 g | F57: 6.9 | G57: 0
A58: 7108 | B58: Linguine Rustichella | C58: Linguine Rustichella | E58: 500 g | F58: 3.9 | G58: 0
A59: 7153 | B59: Pappardelle Rustichella (eggs) | C59: Pappardelle Aux Oeufs Rustichella | E59: 250 g | F59: 7.5 | G59: 0
A60: 7109 | B60: Penne Rustichella | C60: Penne Rustichella | E60: 500 g | F60: 6.9 | G60: 0
A61: 7107 | B61: Spagetti Rustichella | C61: Spaghetti Rustichella | E61: 500 g | F61: 6.9 | G61: 0
A62: 7110 | B62: Trofie Rustichella | C62: Trofie Rustichella | E62: 250 g | F62: 7.5 | G62: 0
A63: Sigem | B63: Rice | C63: Riz | D63: Qtés | E63: Poids | F63: Prix
D64: Qty | E64: Weight | F64: Price
A65: 4416 | B65: Rice Arborio In A Cotton Bag | C65: Riz Arborio Sac Coton | E65: 1 kg | F65: 8.5 | G65: 0
A66: 4419 | B66: Rice Carnaroli In A Cotton Bag | C66: Riz Carnaroli Sac Coton | E66: 1 kg | F66: 8.5 | G66: 0
A67: 4417 | B67: Rice - Black Rice Belvedere | C67: Riz Noir Belvedere | E67: 500 g | F67: 6 | G67: 0
A68: Sigem | B68: Sauce Handmade | C68: Sauces Artisanales | D68: Qtés | E68: Poids | F68: Prix
D69: Qty | E69: Weight | F69: Price
A70: 7151 | B70: Puttanesca (Caper, Olive, Tomato) | C70: Puttanesca (Capres, Olive & Tomate) | E70: 250 g | F70: 8 | G70: =F70*D70 -> 0
A71: 7102 | B71: Ketchup De La Baita | C71: Ketchup De La Baita | E71: 180 g | F71: 9.9 | G71: 0
A72: 7152 | B72: Arrabiata (Tomato, Spice) | C72: Arrabiata (Tomate, Piment) | E72: 250 g | F72: 8 | G72: 0
A73: 7149 | B73: Bolognaise | C73: Bolognaise | E73: 270 g | F73: 9.9 | G73: 0
C75: Directly Imported | F75: Welcome Page | G75: =SUM(G3:G73) -> 0

Sheet Miscellaneous
A1: Sigem | B1: Bread Loaf | C1: Pain De Mie | D1: Qtés | E1: Poids | F1: Prix | G1: Subtotal
D2: Qty | E2: Weight | F2: Price
A3: 4026 | B3: Loaf Sliced Bread : Plain | C3: Pain De Mie Nature | E3: 550 g | F3: 3.9 | G3: =F3*D3 -> 0
A4: 4026 | B4: Loaf Sliced Bread : Whole | C4: Pain De Mie Complet | E4: 550 g | F4: 3.9 | G4: =F4*D4 -> 0
A5: Sigem | B5: Cleaning Products And Accessories | C5: Produits Ménagers Et Accessoires Menagers | D5: Qtés | E5: Poids | F5: Prix
D6: Qty | E6: Weight | F6: Price
A7: 4825 | B7: Air Spray Febreze Anti Allergens | C7: Febreze Anti Allergenes | E7: 500 ml | F7: 9.9 | G7: 0
A8: 4905 | B8: Aluminium Foil 0.40 X 200 m | C8: Papier Alu 0.44 X 200 m | E8: 1 pc | F8: 51.9 | G8: 0
A9: 4049 | B9: Assouplissant Linge Essentiel - ph 5.5 | C9: Clothes Fabric Softner - ph 5.5 | E9: 5 l | F9: 27.9 | G9: 0
A10: 4869 | B10: Bleach | C10: Javel | E10: 5 l | F10: 8.9 | G10: 0
A11: 4909 | B11: Cling Film 0.45 X 300 cm | C11: Film Etirable 0.45 X 300 m | E11: 1 pc | F11: 20.5 | G11: 0
A12: 4981 | B12: Cooking Spray | C12: Spray De Cuisson | E12: 250 ml | F12: 13.9 | G12: 0
A13: 4105 | B13: Dishwashing Liquid | C13: Liquide vaisselle | E13: 1 l - ph 7 | F13: 3.9 | G13: 0
A14: 4101 | B14: Dishwashing Tablets - Sun Professional | C14: Pastilles pour Lave-vaiselle - Sun Professionnel | E14: 52 tablets | F14: 18.6 | G14: 0
A15: 4873 | B15: Feezer Bag Ultra Zip - 3 sizes 10 big : 30 x 40 cm 20 medium : 20 x 32 cm 20 small : 18 x 22 cm | C15: Sac Congelation Ultra Zip - 3 taille 10 grand : 30 x 40 cm 20 moyen : 20 x 32 cm 20 petite : 18 x 22 cm | E15: 1 pc | F15: =2.76*2.5 -> 6.9 | G15: 0
A16: 4258 | B16: Garbage Bag 100 l | C16: Sac Poubelle 100 l | E16: 25 pcs | F16: 7.5 | G16: 0
A17: 4918 | B17: Garbage Bag 50 l | C17: Sac Poubelle 50 l | E17: 15 pcs | F17: 4.9 | G17: 0
A18: 7000 | B18: Garbage Bag 30 l | C18: Sac Poubelle 30 l | E18: 25 pcs | F18: 3.7 | G18: 0
A19: 4921 | B19: Gloves Small | C19: Gants Petite | E19: 100 pcs | F19: 13.9 | G19: 0
A20: 4919 | B20: Gloves Medium | C20: Gants Medium | E20: 100 pcs | F20: 13.9 | G20: 0
A21: 4920 | B21: Gloves Large | C21: Gants Large | E21: 100 pcs | F21: 13.9 | G21: 0
A22: 4106 | B22: Kitchen Paper Towels | C22: Rouleau d’essuie‑tout | E22: 3 rolls | F22: 4.9 | G22: 0
A23: 4149 | B23: Lessive Liquid Textile - ph - 8.30 | C23: Liquid Laundry Detergent - ph - 8.30 | E23: 5 l | F23: 27.5 | G23: 0
A24: 7001 | B24: Sanitizer Sanytol Spray | C24: Desinfectant Sanytol Spray | E24: 500 ml | F24: 6.9 | G24: 0
A25: 4808 | B25: Sponge | C25: Eponge | E25: 3 pcs | F25: 3.9 | G25: 0
A26: 4113 | B26: Toilette Paper | C26: Papier toilette | E26: 8 rolls | F26: 5.5 | G26: 0
A27: Sigem | B27: Dried : Vegetables / Mushrooms / Fruits | C27: Produits Secs | D27: Qtés | E27: Poids | F27: Prix
D28: Qty | E28: Weight | F28: Price
A29: 4139 | B29: Almond Naja Organic | C29: Amandes Naja Bio | E29: 160 g | F29: 9.9 | G29: 0
A30: 4141 | B30: Almond Salted & Grilled | C30: Amande Salée & Grillée | E30: 150 g | F30: 10.5 | G30: 0
A31: 4712 | B31: Almond Powder | C31: Poudre Amande | E31: 150 g | F31: 10.5 | G31: 0
A32: 4140 | B32: Apricot Organic | C32: Abricot Sec Bio | E32: 230 g | F32: 12.9 | G32: 0
A33: 4345 | B33: Brazil Nuts Organic | C33: Noix Du Bresil Bio | E33: 150 g | F33: 14.5 | G33: 0
A34: 4152 | B34: Cashew Nuts Salted Organic | C34: Noix Cajou Salée Bio | E34: 150 g | F34: 10.5 | G34: 0
A35: 4151 | B35: Cashew Nuts Organic | C35: Noix Cajou Bio | E35: 150 g | F35: 10.5 | G35: 0
A36: 4218 | B36: Chia Seeds Organic | C36: Graine de Chia Bio | E36: 150 g | F36: 9.7 | G36: 0
A37: 4144 | B37: Cranberry Organic | C37: Canneberge Bio | E37: 130 g | F37: 7.9 | G37: 0
A38: 4161 | B38: Fig Mini Organic | C38: Mini Figues Bio | E38: 290 g | F38: 12.5 | G38: 0
A39: 4889 | B39: Wood Mushroom Mix | C39: Melange Forestier | E39: 20 g | F39: 8.5 | G39: 0
A40: 4143 | B40: Godji Berry | C40: Baie De Godji | E40: 100 g | F40: 9.5 | G40: 0
A41: 4160 | B41: Grape Sultamine Organic | C41: Raisin Sultanine Bio | E41: 270 g | F41: 10.5 | G41: 0
A42: 4150 | B42: Hazelnut Italia | C42: Noisette Italie | E42: 150 g | F42: 11.5 | G42: 0
A43: 4154 | B43: Macadamia Nuits | C43: Noix Macadamia | E43: 150 g | F43: 14.5 | G43: 0
A44: 4890 | B44: Morels | C44: Morilles | E44: 15 g | F44: 27.9 | G44: 0
A45: 4142 | B45: Peanut Salted | C45: Arachide Salée Marseille | E45: 150 g | F45: 8.9 | G45: 0
A46: 4155 | B46: Pecan Nuts Organic | C46: Noix De Pecan Bio | E46: 120 g | F46: 10.5 | G46: 0
A47: 4156 | B47: Pine Nuts | C47: Pignon De Pin | E47: 140 g | F47: 14.5 | G47: 0
A48: 4157 | B48: Pistaccio Nuts Hulled Organic | C48: Pistache Émondée Bio | E48: 150 g | F48: 18.9 | G48: 0
A49: 4158 | B49: Pistaccio Salted | C49: Pistache Salée | E49: 200 g | F49: 10.9 | G49: 0
A50: 4159 | B50: Prune Pitted | C50: Pruneau Sans Noyau | E50: 330 g | F50: 10.5 | G50: 0
A51: 4145 | B51: Walnut Kernel Organic | C51: Noix Cerneaux Bio | E51: 150 g | F51: 10.9 | G51: 0
A52: Sigem | B52: Cans / Tubes / Glass | C52: Conserves / Tubes | D52: Qtés | E52: Poids | F52: Prix
D53: Qty | E53: Weight | F53: Price
A54: 7170 | B54: Chikpeas Bocal Picuezo | C54: Pois-chiche Picuezo | E54: 540 g | F54: 4.1 | G54: 0
A55: 4570 | B55: Corn | C55: Epis De Mais | E55: 190 g | F55: 5.1 | G55: 0
A56: 7201 | B56: Gherkins / Pickles Extra | C56: Cornichons Extra Fin | E56: 190 g | F56: 3.2 | G56: 0
A57: Sigem | B57: Gourmet Olive Oil | C57: Huile Olive Gourmet | D57: Qtés | E57: Poids | F57: Prix
D58: Qty | E58: Weight | F58: Price
A59: 4370 | B59: Extra Olive Oil White Truffle | C59: Huile Olive Extra Truffe Blanche | E59: 250 ml | F59: 18.5 | G59: 0
A60: 7049 | B60: Extra Virgin Olive Oil | C60: Huile Olive Extra Vierge | E60: 3 l | F60: 56.5 | G60: 0
A61: 4024 | B61: Extre Virgin Corsican Olive Oil Petraghje | C61: Huile Olive Vierge Corse Petraghje | E61: 3 l | F61: 99.9 | G61: 0
A62: 4508 | B62: Extra Virgin Corsican Olive Oil Petraghje | C62: Huile Olive Vierge Corse Petraghje | E62: 75 cl | F62: 32 | G62: 0
A63: Sigem | B63: Lentil | C63: Lentille | D63: Qtés | E63: Poids | F63: Prix
D64: Qty | E64: Weight | F64: Price
A65: 4442 | B65: Coral Lentil Organic | C65: Lentille Corail Bio | E65: 300 g | F65: 2.6 | G65: 0
A66: 4857 | B66: Lentil Black Beluga Organic | C66: Lentille Beluga Noire Bio | E66: 500 g | F66: 6.7 | G66: 0
A67: Sigem | B67: Pearls | C67: Perles | D67: Qtés | E67: Poids | F67: Prix
D68: Qty | E68: Weight | F68: Price
A69: 4533 | B69: Balsamic Pearl | C69: Perle Vinaigre Balsamique | E69: 200 g | F69: 39 | G69: 0
A70: 4282 | B70: Yuzu Pearls | C70: Perles Yuzu | E70: 200 g | F70: 39 | G70: 0
A71: Sigem | B71: Quinoa | C71: Quinoa | D71: Qtés | E71: Poids | F71: Prix
D72: Qty | E72: Weight | F72: Price
A73: 7207 | B73: Quinoa 3 Colors Organic | C73: Quinoa Trio Bio | E73: 500 g | F73: 6.7 | G73: 0
A74: 7208 | B74: Quinoa White Organic | C74: Quinoa Blanc Bio | E74: 500 g | F74: 7.8 | G74: 0
A75: Sigem | B75: Rice | C75: Riz | D75: Qtés | E75: Poids | F75: Prix
D76: Qty | E76: Weight | F76: Price
A77: 4418 | B77: Bomba Arroz Rice | C77: Riz Bomba | E77: 500 g | F77: 11 | G77: =F77*D77 -> 0
A78: 4864 | B78: Jasmine Rice | C78: Riz Jasmin | E78: 1 kg | F78: 4.5 | G78: 0
A79: 4307 | B79: Long Basmati Rice | C79: Riz Long Basmati Elephant | E79: 1 kg | F79: 6.5 | G79: 0
A80: 4421 | B80: Long Basmati Rice | C80: Riz Long Basmati Elephant | E80: 5 kg | F80: 26.5 | G80: 0
A81: 4011 | B81: Red Rice Organic Camargue | C81: Riz Rouge Camargue Bio | E81: 500 g | F81: 5.9 | G81: 0
A82: Sigem | B82: Miscellaneous | C82: Divers | D82: Qtés | E82: Poids | F82: Prix
D83: Qty | E83: Weight | F83: Price
A84: 7202 | B84: Hellman's Mayo | C84: Mayo Hellman's | E84: 404 g | F84: 7.8 | G84: 0
A85: 4846 | B85: Baking Powder | C85: Levure Chimique | E85: 1 kg | F85: 18.9 | G85: 0
A86: 4439 | B86: Brown Sugar | C86: Cassonade | E86: 750 g | F86: 4.9 | G86: 0
A87: 7206 | B87: Semolina | C87: Couscous Moyen | E87: 1 kg | F87: 7.2 | G87: 0
A88: 7211 | B88: Brick Pastry Sheet | C88: Feuilles De Brick | E88: 170 g | F88: 3.3 | G88: 0
A89: 4359 | B89: Granola 2 Chocolates & Almond | C89: Granola 2 Chocolats & Amandes Bio | E89: 375 g | F89: 8.4 | G89: 0
A90: 4466 | B90: Sugar Cube | C90: Sucre En Morceaux | E90: 1 kg | F90: 3.1 | G90: 0
A91: 4383 | B91: Caster Sugar | C91: Sucre En Poudre | E91: 750 g | F91: 3.8 | G91: 0
A92: 7056 | B92: Icing Sugar | C92: Sucre Glace | E92: 500 g | F92: 4.9 | G92: 0
A93: 7212 | B93: Red Beans | C93: Haricot Rouge | E93: 400 g | F93: 4.4 | G93: 0
A94: 7066 | B94: Corn Flakes Organic | C94: Corn Flakes Bio | E94: 300 g | F94: 6.2 | G94: 0
A95: 4367 | B95: Peanut Butter | C95: Beurre Cacahouéte | E95: 340 g | F95: 5.6 | G95: 0
A96: 7067 | B96: Oatmeal Organic | C96: Flocon Avoine Bio | E96: 500 g | F96: 4.7 | G96: 0
A97: Sigem | B97: Vinegar | C97: Vinaigre | D97: Qtés | E97: Poids | F97: Prix
D98: Qty | E98: Weight | F98: Price
A99: 7217 | B99: Cider Vinegar | C99: Vinaigre Cidre | E99: 50 cl | F99: 6.1 | G99: 0
A100: 4711 | B100: Balsamic Cream Of Modena | C100: Creme Balsamique Modène | E100: 250 ml | F100: 10.6 | G100: 0
A101: 4400 | B101: Balsamic Cream White | C101: Creme Balsamique Blanche | E101: 250 ml | F101: 8.6 | G101: 0
A102: 4544 | B102: Red Wine Vinegar Organic | C102: Vinaigre Vin Rouge Bio | E102: 50 cl | F102: 12 | G102: 0
A103: 4548 | B103: Sherry Vinegar Pedro Ximenez | C103: Vinaigre Xeres Pedro Ximenez | E103: 500 ml | F103: 11.9 | G103: 0
F105: Welcome Page | G105: =SUM(G3:G103) -> 0

Sheet Premium Frozen Meat
A1: Sigem | B1: Premium Frozen Meat | C1: Viande Congelée De Haute Qualité | D1: Qty | E1: Poids / Weight | F1: Estimated Price | G1: Price | H1: Subtotal
G2: Per Kilo
C3: Beef - Guest | E3: 2026
A4: 4346 | B4: Argentine Ribeye | C4: Entrecôte Argentine 2 X 250 Gr / 300 Gr | E4: 500 g / 600 g | F4: =79.9*0.6 -> 47.94 | G4: 79.9 | H4: =F4*D4 -> 0
A5: 4682 | B5: Black Angus Beef Ribeye (USA) | C5: Entrecôte Bœuf Black Angus Usa | E5: 1.5 kg - 2.5 kg | F5: =123.9*2 -> 247.8 | G5: 123.9 | H5: =F5*D5 -> 0
A6: 4483 | B6: Australian Wagyu Ribeye 8+ — 2 x 300 g | C6: Entrecôte Wagyu Australien 8+ 2 X 300 Gr | E6: 600 g | F6: =269*0.6 -> 161.4 | G6: 269 | H6: 0
A7: 7115 | B7: Argentine Sirloin / Striploin — 2 x 300 g | C7: Faux Filet Argentin 2 X 300 Gr | E7: 600 g | F7: =74.9*0.6 -> 44.94 | G7: 74.9 | H7: 0
A8: 8201 | B8: Argentine Beef Tenderloin | C8: Filet Bœuf Argentin | E8: 2 kg + | F8: =99.9*2 -> 199.8 | G8: 99.9 | H8: 0
A9: 8202 | B9: USA / Australian Angus Tomahawk | C9: Tomahawk Angus Australien / Etats Uni | E9: 1.2 kg - 1.6 kg | F9: =1.6*112.9 -> 180.64 | G9: 112.9 | H9: 0
C10: Hachés Premium | D10: Qty | E10: Poids / Weight | F10: Estimated Price | G10: Price Per Kilo
A11: 4341 | B11: Burger Wagyu | C11: Burger Wagyu 1 x 170 Gr | E11: 170 g | F11: =72*0.17 -> 12.24 | G11: 72 | H11: 0
A12: 4343 | B12: Burger Black Angus | C12: Burger Black Angus 1 x 200 Gr | E12: 200 g | F12: =44.9*0.2 -> 8.98 | G12: 44.9 | H12: 0
C13: Agneau | D13: Qty | E13: Poids / Weight | F13: Estimated Price | G13: Price Per Kilo
A14: 4025 | B14: Lamb Shank | C14: Souris D'Agneau | E14: 2 x 330 g | F14: =54*0.66 -> 35.64 | G14: 54 | H14: 0
A15: 4491 | B15: Rack of Lamb | C15: Carré Agneau Néttoyé 2 X 4 Côtes | E15: 500 / 700 g | F15: =64.9*0.6 -> 38.94 | G15: 64.9 | H15: 0
A16: 4344 | B16: Whole Bone-in Leg of Lamb | C16: Gigot Agneau Avec Os | E16: 2.5 kg +/- | F16: =49*2.5 -> 122.5 | G16: 49 | H16: 0
B17: Duck | C17: Canard | D17: Qty | E17: Poids / Weight | F17: Estimated Price | G17: Price Per Kilo
A18: 8011 | B18: Duck Breast | C18: Magret De Canard | E18: 380/400 g | F18: =31*0.38 -> 11.78 | G18: 31 | H18: 0
A19: 8012 | B19: Lobe Of Duck Foie Gras | C19: Lobe De Foie Gras De Canard | E19: 500 g env | F19: =113*0.5 -> 56.5 | G19: 113 | H19: 0
C20: Porc | D20: Qty | E20: Poids / Weight | F20: Estimated Price | G20: Price Per Kilo
A21: 4349 | B21: Boneless Pork Loin Roast | C21: Rôti de Longe de Porc - Sans Os | E21: 2 - 2.5 kg | F21: =27.9*2.25 -> 62.775 | G21: 27.9 | H21: 0
A22: 6092 | B22: Iberian Pluma | C22: Pluma Ibérico | E22: 500 / 800 g | F22: =59.9*0.8 -> 47.92 | G22: 59.9 | H22: 0
A23: 4434 | B23: Pork Chops | C23: Côte de Porc 2 x 180 Gr / 200 Gr | E23: 360 g / 400 g | F23: =25.2*0.2 -> 5.04 | G23: 25.2 | H23: 0
A24: 4347 | B24: Pork Tenderloin | C24: Filet Mignon de Porc | E24: 450 / 600 g | F24: =29.9*0.6 -> 17.94 | G24: 29.9 | H24: 0
C25: Veau | D25: Qty | E25: Poids / Weight | F25: Estimated Price | G25: Price Per Kilo
A26: 4032 | B26: Veal Chops - 4 x 300 Gr | C26: Cote De Veau 4 x 300 Gr | E26: 1.2 kg | F26: =64.9*1.2 -> 77.88 | G26: 64.9 | H26: 0
A27: 4481 | B27: Veal Escalopes - 2 x 180 Gr / 200 Gr | C27: Escalope de Veau 2 X 180 Gr / 200 Gr | E27: 360 g / 400 g | F27: =56*0.4 -> 22.4 | G27: =28*2 -> 56 | H27: 0
A28: 4485 | B28: Veal Quasi Medallions - 2 x1 80 Gr | C28: Pavé Quasi De Veau 2 X 180 Gr | E28: 360 g | F28: =69.9*0.36 -> 25.164 | G28: 69.9 | H28: 0
A29: 4482 | B29: Veal Tenderloin | C29: Filet de Veau | E29: 1 kg + | F29: 74 | G29: =37*2 -> 74 | H29: 0
B30: Guest | C30: Poulet Label Rouge Élevé Plein Air | D30: Qty | E30: Poids / Weight | F30: Estimated Price | G30: Price Per Kilo
C31: Guest
A32: 4484 | B32: Free-Range Chicken Breast | C32: Filet de Poulet - Fermier | E32: 2 kg | F32: =43.9*2 -> 87.8 | G32: 43.9 | H32: =F32*D32 -> 0
A33: 4486 | B33: Free-Range Chicken Supreme, Skin On | C33: Suprême Fermier Avec Peau | E33: around 1 kg | F33: =39.9*2 -> 79.8 | G33: 39.9 | H33: 0
A34: 7250 | B34: Free-Range Chicken Thighs | C34: Cuisses de Poulet - Fermier | E34: 2 kg | F34: =29.9*2 -> 59.8 | G34: =11.5*2.6 -> 29.9 | H34: 0
A35: 4072 | B35: Free-Range Chicken Thighs, Boneless, Skin On | C35: Cuisses de Poulet - Fermier Desosse - Avec Peau | E35: 2 kg | F35: =34.9*2 -> 69.8 | G35: 34.9 | H35: 0
A36: 4272 | B36: Whole Free-Range Chicken | C36: Entiére Poulet Fermier | E36: 1.5 kg | F36: =24.9*1.5 -> 37.35 | G36: 24.9 | H36: 0
C37: Crew | D37: Qty | E37: Poids / Weight | F37: Estimated Price | G37: Price Per Kilo
A38: 4205 | B38: Chicken Breast | C38: Filet de Poulet - Jaune | E38: 2 kg | F38: =29.9*2 -> 59.8 | G38: 29.9 | H38: 0
A39: 4390 | B39: Chicken Supreme, Skin On | C39: Suprême Jaune Avec Peau | E39: around 2 kg | F39: =26.9*2 -> 53.8 | G39: 26.9 | H39: 0
A40: 4216 | B40: Chicken Thighs | C40: Cuisses de Poulet - Jaune | E40: 2 kg | F40: =17.9*2 -> 35.8 | G40: 17.9 | H40: 0
A41: 4201 | B41: Chicken Thighs, Boneless, Skin On | C41: Cuisses de Poulet - Jaune Desosse - Avec Peau | E41: 2 kg | F41: =21.9*2 -> 43.8 | G41: 21.9 | H41: 0
C42: Petit Déjeuner | D42: Qty | E42: Poids / Weight | F42: Estimated Price | G42: Price Per Kilo
A43: 4334 | B43: Artisanal Fresh Sliced Smoked Bacon | C43: Poitrine Fumée Tranchée Artisanale Frais | E43: 750 g | F43: =29.9*0.75 -> 22.425 | G43: 29.9 | H43: 0
A44: 4310 | B44: Pre-Cooked Mini Pork Chipolatas | C44: Mini Chipo Porc Précuites | E44: 700 / 750 g | F44: =32.5*0.75 -> 24.375 | G44: 32.5 | H44: 0
A45: 4891 | B45: Pre-Cooked Mini Veal/Chicken Sausages | C45: Mini Saucisses Veau/Volaille Précuites | E45: 700 / 750 g | F45: =32.5*0.75 -> 24.375 | G45: 32.5 | H45: 0
C47: Notre Partenaire De Choix : Metzger Frères | E47: Welcome Page
B50: Premium PRE-COOKED "sous vide" Meat cooked on low temperature | C50: Viande Pre cuite sous vide à basse temperature | E50: Welcome Page
A52: Sigem | B52: Lamb | C52: Agneau | D52: Qty | E52: Poids / Weight | F52: Estimated Price | G52: Price Per Kilo
A53: 4039 | B53: Lamb Shank | C53: Souris d'Agneau | E53: 2 x 330 g | F53: 46.2 | G53: 69.9 | H53: =F53*D53 -> 0
A54: 4039 | B54: Lamb Shank | C54: Souris d'Agneau | E54: 4 x 330 g | F54: 92.3 | G54: 69.9 | H54: =F54*D54 -> 0
C55: Veau | D55: Qty | E55: Poids / Weight | F55: Estimated Price | G55: Price Per Kilo
A56: 4031 | B56: Veal Rib | C56: Cote de Veau | E56: 4 x 300 g | F56: 95.9 | G56: 79.9 | H56: =F56*D56 -> 0
B57: Veal | C57: Porc | D57: Qty | E57: Poids / Weight | F57: Estimated Price | G57: Price Per Kilo
A58: 4063 | B58: Iberian Pork Secreto | C58: Secreto Cochon Iberique | E58: 300-800 Gr | F58: 55.9 | G58: 69.9 | H58: =F58*D58 -> 0
C62: Notre partenaire de choix : JA Gastronomie | E62: Welcome Page | H62: =SUM(H4:H58) -> 0

Sheet Premium Frozen Seafood
A1: Sigem | B1: Qwehli Frozen Seafood Sashimi Grade - Flash Frozen | C1: QWEHLI Produits de la mer surgelés, qualité sashimi - Surgelé flash | D1: Qtés | E1: Poids | F1: Estimated | G1: Price Per Kilo | H1: Subtotal
D2: Qty | E2: Weight | F2: Price | G2: Prix Par Kilo
A3: 6090 | B3: Sona Black Tiger Prawns 16/20 | C3: Sona Crevette Tigree Crue Black Qwehli 16/20 | E3: 2 kg | F3: 99 | G3: 49.5 | H3: =F3*D3 -> 0
A4: 4573 | B4: Patagonian Toothfish | C4: Legine Australe Filet | E4: 2 kg - 2.5 kg | F4: 298 | G4: 149 | H4: 0
A5: 4092 | B5: Meagre / Salmon Bass Filet | C5: Maigre / Salmon Bass Filet | E5: 1 kg - 1.5 kg | F5: 86.25 | G5: 69 | H5: 0
A6: 6024 | B6: Whole Gutted Dover Sole | C6: Sole Entière Éviscérée | E6: .800 kg - 1 kg | F6: 71.2 | G6: 89 | H6: 0
A7: 6053 | B7: Blue Lobster kit | C7: Homard Bleu kit | E7: 500 g / 600 g | F7: 59 | G7: 109 | H7: 0 | I7: OUT OF STOCK
A8: Sigem | B8: Flash Frozen Fillets | C8: Filets Poisson Flashfrozen | D8: Qtés | E8: Estimated Weight | F8: Estimated | G8: Price Per Kilo
D9: Qty | F9: Price | G9: Prix Par Kilo
A10: 8001 | B10: Yellow Tail Hamachi Fillet Loin | C10: Sériole Japonaise Hamachi | E10: 1.3- 1.7 kg | F10: =69*1.5 -> 103.5 | G10: 69 | H10: =F10*D10 -> 0
A11: Sigem Code | B11: Frozen Crustacean | C11: Crustacés Congelés | D11: Qtés | E11: Poids | F11: Estimated | G11: Price Per Kilo
D12: Qty | E12: Weight | F12: Price | G12: Prix Par Kilo
A13: 4526 | B13: Carabineros | C13: Carabineros | E13: 400 g | F13: 54.9 | G13: 137.25 | H13: =F13*D13 -> 0
A14: 4479 | B14: Carabineros Hoso U10 | C14: Carabineros U10 | E14: 1 kg | F14: 129 | G14: 129 | H14: =F14*D14 -> 0
A15: 8006 | B15: Wild Gambas Cameron Giant 2/4 | C15: Sauvage Gambas Cameron Géante 2/4 | E15: 800 g | F15: 71 | G15: 88.9 | H15: 0
A16: 6091 | B16: Wild Gambas 8/12 | C16: Sauvage Gambas 8/12 | E16: 800 g | F16: 34.8 | G16: 43.5 | H16: 0
A17: 6064 | B17: Langoustines 10/15 Frozen On Board Scotland | C17: Langoustines Ecosse Congelées Bord 10/15 | E17: 1 +/- kg | F17: 63.9 | G17: 63.9 | H17: 0
A18: 6066 | B18: Octopuss Cooked Tentacle | C18: Tentacules Poulpe Cuite | E18: 0.24 - 0.30 kg | F18: 19.9 | G18: 66 | H18: 0
A19: 8009 | B19: Scallops No Coral | C19: Noix St Jacques Sans Corail | E19: 1 kg | F19: 83.9 | G19: 83.9 | H19: 0
A20: 8010 | B20: Shrimps "easy" Cooked Peeled Tail | C20: Queue De Crevettes Cuites "easy" | E20: 400 g | F20: 17.9 | G20: 44.9 | H20: 0
A21: 6071 | B21: Squid Cleaned Patagonia 9/12 | C21: Calamar Nettoyé Patagonie 9/12 | E21: 900 g | F21: 25.9 | G21: 28.8 | H21: 0
A22: Sigem Code | B22: Smoked Fish, Jars & The Sea | C22: Poisson Fumé, Conserves De La Mer | D22: Qtés | E22: Poids | F22: Estimated
B23: Not Frozen | C23: Pas Congele | D23: Qty | E23: Weight | F23: Price
A24: 6036 | B24: Crab Meat | C24: Chair Crabe Claw (pattes Et Corps) | E24: 454 g | F24: 43.9 | H24: 0
A25: 4375 | B25: Ortiz Sardines Old Style With Olive Oil | C25: Sardines À L'ancienne & Huile Olive Ortiz | E25: 140 g | F25: 10 | H25: 0
A26: 4380 | B26: Ortiz Full Plain Tuna Filet | C26: Filet Thon Germon Naturel Ortiz | E26: 220 g | F26: 13.9 | H26: 0
A27: 4377 | B27: Ortiz Sardines Old Style Nautral | C27: Sardines À L'ancienne Ortiz | E27: 190 g | F27: 9.9 | H27: 0
A28: 4381 | B28: Ortiz Ventresca White Tuna In Oil | C28: Ventresca Thon Blanc Ortiz | E28: 120 g | F28: 19.5 | H28: 0
A29: 4382 | B29: Anchovy With Olive Oil | C29: Anchois A L'huile D'olive | E29: 95 g | F29: 17.9 | H29: 0
A30: 4378 | B30: Ortiz White Tuna Germon In Oil | C30: Thon Blanc Germon A L'huile Ortiz | E30: 220 g | F30: 13.5 | H30: 0
A31: 6040 | B31: Squid Ink Natural | C31: Encre Seiche Naturelle | E31: 90 g | F31: 10.9 | H31: 0
A32: 4524 | B32: Tuna Garum | C32: Garum De Thon | E32: 100 ml | F32: 26.9 | H32: 0
A33: 4387 | B33: Tobikko Orange | C33: Tobikko Orange | E33: 100 g | F33: 15.5 | H33: 0
F35: Welcome Page | H35: =SUM(H3:H33) -> 0

Sheet Syrups Honey Jams tea coffee
A1: Sigem Code | B1: Syrups & Honeys & Jams | C1: Sirop & Miel & Confitures | D1: Qtés | E1: Poids | F1: Prix | G1: Subtotal
D2: Qty | E2: Weight | F2: Price
A3: 4408 | B3: Thyme Honey | C3: Miel De Thym | E3: 250 g | F3: 13 | G3: =F3*D3 -> 0
A4: 4404 | B4: Maple Sirop | C4: Sirop Erable | E4: 250 ml | F4: 7.2 | G4: =F4*D4 -> 0
A5: 4402 | B5: Greek Forest Honey Liquid | C5: Miel Foret Grecque Liquide | E5: 470 g | F5: 14.9 | G5: 0
A6: 4406 | B6: Manuka Honey Iaa 5+ | C6: Miel De Manuka Iaa 5+ | E6: 250 g | F6: 39.9 | G6: 0
A7: 4409 | B7: Jam Abricot | C7: Confiture Abricot | E7: 320 g | F7: 8.9 | G7: 0
A8: 7173 | B8: Jam Blackberry | C8: Confiture Mûres | E8: 320 g | F8: 9.9 | G8: 0
A9: 7172 | B9: Jam Wild Blueberry | C9: Confiture Myrtilles | E9: 320 g | F9: 9.9 | G9: 0
A10: 4410 | B10: Jam Peach | C10: Peche De Vigne | E10: 320 g | F10: 9.9 | G10: 0
A11: 4411 | B11: Jam Strawberry | C11: Confiture Fraise | E11: 320 g | F11: 9.5 | G11: 0
A12: 4412 | B12: Jam Fig | C12: Confiture Figue | E12: 320 g | F12: 9.5 | G12: 0
A13: 4414 | B13: Jam Raspberry | C13: Confiture Framboises | E13: 320 g | F13: 9.9 | G13: 0
A14: 4301 | B14: Agave Sirup | C14: Sirop Agave | E14: 250 g | F14: 8 | G14: 0
A15: Sigem | B15: Tea Damman | C15: Thé X 24 Sachets | D15: Qtés | E15: Poids | F15: Prix
D16: Qty | E16: Weight | F16: Price
A17: 4389 | B17: Thé Earl Grey Black | C17: Thé Noir Earl Grey Damman | E17: 48 g | F17: 22.5 | G17: 0
A18: 4391 | B18: Black Darjeeling Damman | C18: Thé Noir Darjeeling Damman | E18: 48 g | F18: 22.5 | G18: 0
A19: 4128 | B19: Black English Breakfast Tea | C19: The English Breakfast Noir | E19: 48 g | F19: 22.5 | G19: 0
A20: 4393 | B20: Green Tea With Mint | C20: Thé Vert À La Menthe | E20: 48 g | F20: 22.5 | G20: 0
A21: 7185 | B21: Matcha Tea Organic | C21: Thé Matcha Bio Fuji | E21: 50 g | F21: 20 | G21: 0
A22: 4700 | B22: Matcha Green Tea Terre Exo | C22: The Matcha Vert Terre Exo | E22: 40 g | F22: 17.9 | G22: 0
A23: 4395 | B23: Gunpowder Green Tea | C23: Thé Vert Gunpowder | E23: 48 g | F23: 22.5 | G23: 0
A24: Sigem | B24: Infusion | C24: Infusion | D24: Qtés | E24: Poids | F24: Prix
D25: Qty | E25: Weight | F25: Price
A26: 4675 | B26: Camomille | C26: Camomille X 24 Sachets | E26: 48 g | F26: 22.5 | G26: 0
A27: 8003 | B27: Verbena | C27: Verveine | E27: 48 g | F27: 22.5 | G27: 0
A28: 4960 | B28: Damman Flavored Herbal Tea | C28: Damman Tisane Des Merveilles | E28: 48 g | F28: 22.5 | G28: 0
A29: Sigem | B29: Coffee | C29: Café | D29: Qtés | E29: Poids | F29: Prix
D30: Qty | E30: Weight | F30: Price
A31: 4397 | B31: Illy Coffee Beans | C31: Cafe Illy Grain | E31: 250 g | F31: 17.5 | G31: 0
A32: 4398 | B32: Illy Decaf Grounded | C32: Décaf Moulu Illy | E32: 250 g | F32: 17.5 | G32: 0
A33: 4399 | B33: Illy Coffee Grounded | C33: Café Moulu Illy | E33: 250 g | F33: 17.5 | G33: 0
A34: 4014 | B34: Nespresso Roma | C34: Nespresso Roma | E34: 10 pods | F34: 7.9 | G34: 0
A35: 4014 | B35: Nespresso Volluto | C35: Nespresso Volluto | E35: 10 pods | F35: 7.9 | G35: 0
A36: 4014 | B36: Nespresso Ristretto | C36: Nespresso Ristretto | E36: 10 pods | F36: 7.9 | G36: 0
A37: 4014 | B37: Nespresso Décafeinato | C37: Nespresso Décafeinato | E37: 10 pods | F37: 7.9 | G37: 0
F39: Welcome Page | G39: =SUM(G3:G37) -> 0

Sheet Fruits and Veggies
A1: Fruits And Vegetables | G1: Fruits | H1: Unités | I1: Kilo | J1: Tray | K1: Preparation
A2: Welcome Page | G2: Kumqwat
G3: Litchi/ Lychee
A4: Chambre Froide 0 - 4 °/ Cold Room 0 - 4 ° | G4: Loquat
A5: Champignon / Mushroom | B5: 125 Gr | C5: Kilo | D5: Caisse Tray | E5: Preparation | G5: Mangoustan
A6: Enoki | G6: Physalis
A7: Enryngii | G7: Papaye/ Papaya
A8: Portobello | G8: Papaye A Râper
A9: Pleurote/ Oyster Mushroom | G9: Pitaya
A10: Paris Blanc/ Button White | G10: Raisin Vert / Green Grape
A11: Paris Crème/ Button Cream | G11: Raisin Rouge / Red Grape
A12: Shitake | G12: Tamarin
A13: Shimenji | G13: Graine Germée/ Cress | H13: Barquette Punnet | I13: Plateau | K13: Preparation
A14: Mini Legumes / Baby Veggies | B14: Barquette Punnet | C14: Kilo | E14: Preparation | G14: Affila
A15: Aubergine/ Eggplant | G15: Daikon
A16: Betterave/ Beetroot | G16: Ghoa
A17: Courgette/ Zucchini | G17: Sakura
A18: Carrote Orange/orange Carrot | G18: Shiso
A19: Carrote Jaune/ Yellow Carrot | G19: Tahoon
A20: Carrote Violet/ Purple Carrot | G20: Vene
A21: Endive | G21: Betterave/ Beetroot
A22: Fenouil/ Fennel | G22: Poireau/ Leek
A23: Panais/ Parsnip | G23: Herbes / Herbs | H23: Bouquet/ Bunch | I23: 1 Bag = 150 G | K23: Preparation
A24: Poireaux/ Leek | G24: Aneth / Dill
A25: Légumes / Veggies | B25: Barquette Punnet | C25: Kilo | E25: Preparation | G25: Basilic
A26: Ail Pelé / Peeled Garlic 1 Kg | G26: Ciboulette / Chives
A27: Broccolini | G27: Coriandre / Coriander
A28: Citron Caviar/ Finger Lime | G28: Cerfeuil / Chervil
A29: Fleur Comestible / Edible Flow | G29: Citronelle / Lemongrass
A30: Fleur Courgette / Zucchini Flow | G30: Estragon / Tarragon
A31: Haricot Vert / Green Bean 500 Gr | G31: Laurier / Laurel
A32: Pois Gourmand / Snow Peas 500 G | G32: Menthe / Mint
A33: Pousse Soja / Soya Beans 500 Gr | G33: Persil / Parsley
A34: Piment Rouge / Red Chili | G34: Persil Plat / Flat Parsley
A35: Salty Fingers | G35: Romarin / Rosemary
A36: Oyster Leave | G36: Sauge / Sage
A37: Fruits Rouge / Berries | B37: 125 Gr | C37: Kilo | D37: Tray | E37: Preparation | G37: Verveine / Verbena
A38: Fraise / Strawberry | G38: Salades / Salads | H38: Unités | I38: 125 Gr | J38: Kilo | K38: Preparation
A39: Mara Des Bois / Wild Strawberry | G39: Chêne Rouge / Red Oak
A40: Framboise / Rasberry | G40: Chêne Vert / Green Oak
A41: Groseille / Red Current | G41: Cresson / Cress
A42: Mûre / Blackberry | G42: Epinard / Spinach
A43: Myrtille / Blueberry | G43: Endive
A44: Cerise / Cherry | G44: Endive Rouge / Red
A45: Fruits | B45: Unit | C45: Kilo | D45: Tray | E45: Preparation | G45: Laitue Frisée/leaf Lettuce
A46: Carambole / Starfruit | G46: Laitue Iceberg
A47: Combava | G47: Laitue Escarole
A48: Feuille Banane / Leaf X20 | G48: Mesclun
A49: Fruit Passion | G49: Batavia
A50: Figue Noire / Black Fig | G50: Mâche / Lamb Lettuce
A51: Figue Verte / Green Fig | G51: Roquette / Rocket
A52: Grenadille | G52: Sucrine/ Cos Lettu(1x6)
A53: Goyave / Guava | G53: Trévise / Raddicchio
A54: Chambre Froide 0 - 8 °/ Cold Room 0 - 8 ° | G54: Légumes / Veggies | H54: Pièce | I54: Kilo | J54: Caisse | K54: Preparation
A55: Agrumes / Citrus | B55: Unités | C55: Kilo | D55: Caisse Tray | E55: Preparation | G55: Choux Chinois / Chinese Cab
A56: Citron / Lemon | G56: Celeri Rave / Celeriac
A57: Citron Vert / Lime | G57: Celeri Branche / Leaf Celery
A58: Orange | G58: Carotte
A59: Orange À Jus / For Juice | G59: Carotte Fane
A60: Pamplemousse / Grapefruit | G60: Carotte Couleur
A61: Fruits | B61: Unités | C61: Kilo | D61: Caisse Tray | E61: Preparation | G61: Concombre
A62: Ananas / Pineaple | G62: Fenouil / Fennel
A63: Abricot / Apricot | G63: Jalapenos
A64: Amande / Almond | G64: Melon Vert / Green
A65: Avocat / Avocado | G65: Melon Corse
A66: Banane | G66: Melon Accent
A67: Banane Mini | G67: Melon Jaune / Yellow
A68: Kiwi | G68: Melon Charentais
A69: Kiwi Jaune / Yellow | G69: Navet / Turnip
A70: Kiwano | G70: Onion Jaune/yellow
A71: Mangue / Mango | G71: Onion Blanc / White
A72: Mirabelle Plum | G72: Onion Rouge / Red
A73: Nectarine Jaune / Yellow | G73: Pak Choy
A74: Nectarine Plate/ Flat | G74: Panais / Parsnip
A75: Noix Coco / Coconut | G75: Pastèque/watermelon
A76: Pomme / Aple Golden | G76: Poivron Rouge/red Pepper
A77: Pink Lady | G77: Poivron Jaune / Yellow Pepper
A78: Pomme / Aple Gala | G78: Poivron Vert / Green Peeper
A79: Pomme / Aple Granny | G79: Poireau / Leek
A80: Poire / Pear Abatte | G80: Radis / Raddish
A81: Poire / Pear Comice | G81: Patates / Potato | H81: Pièce | I81: Kilo | K81: Preparation
A82: Poire / Pear William | G82: Agria
A83: Pêche Jaune / Yellow Peach | G83: Agata
A84: Pêche Blanche / Peach | G84: Artemis
A85: Prune Rouge/ Red Plum | G85: Binje / Mash
A86: Prune Jaune / Yellow Plum | G86: Charlotte
A87: Rhubarbe | G87: Grenaille
A88: Légumes / Veggies | B88: Pièce | C88: Kilo | D88: Caisse/ Tray | E88: Preparation | G88: Terre
A89: Aubergine / Eggplant | G89: Au Four / Oven
A90: Artichaut / Artichoke | G90: Ratte / Fingerling
A91: Avocat / Avocado | G91: Rosevalt
A92: Ail | G92: Douce / Sweet
A93: Betterave S/vide X 4 Beetroot Vaccum X 4 | G93: Vitelotte
A94: Betterave Orange/beetroot Orange | G94: Tomates / Tomato | H94: Punnet | I94: Kilo | J94: Tray | K94: Preparation
A95: Betterave / Beetroot | G95: Coktail
A96: Butternut | G96: Grappe / Wine
A97: Chioggia | G97: Roma
A98: Courgette / Zucchini | G98: Tomberry Jaune / Yellow
A99: Courgette Ronde / Rond Zucchini | G99: Noir Crimée / Black Crimea
A100: Choux Fleur / Cauliflower | G100: Notes: Special Request
A101: Choux Vert / Green Cauliflower
A102: Choux Rouge / Red Cauliflower

Sheet Alcohol and Beers
A1: Sigem Code | B1: Alcool | C1: Conditionning | D1: Qty | F1: Price | G1: Subtotal
A3: 5507 | B3: Angostura Bitter | C3: 20 cl | F3: 32 | G3: =F3*D3 -> 0
A4: 5516 | B4: Aperol | C4: 1 l | F4: 38 | G4: =F4*D4 -> 0
A5: 5726 | B5: Baileys | C5: 70 cl | F5: 24 | G5: =F5*D5 -> 0
A6: 5697 | B6: Black Café | C6: 70 cl | F6: 20 | G6: =F6*D6 -> 0
A7: 5529 | B7: Campari Red | C7: 1 l | F7: 39 | G7: 0
A8: 5526 | B8: Cognac N° 29 Tesseron | C8: 70 cl | F8: 543 | G8: 0
A9: 5525 | B9: Cognac N° 53 Tesseron | C9: 70 cl | F9: 277 | G9: 0
A10: 5524 | B10: Cognac N° 76 Tesseron | C10: 70 cl | F10: 125 | G10: 0
A11: 5530 | B11: Cointreau | C11: 70 cl | F11: 37 | G11: 0
A12: 5534 | B12: Fernet Branca | C12: 70 cl | F12: 39 | G12: 0
A13: 4514 | B13: Gin French - San Roccu | C13: 70 cl | F13: 59 | G13: 0
A14: 5679 | B14: Gin Gardener | C14: 70 cl | F14: 68 | G14: 0
A15: 5537 | B15: Gin Hendricks | C15: 70 cl | F15: 45 | G15: 0
A16: 5661 | B16: Gin Dry Sipsmith London | C16: 70 cl | F16: 54 | G16: 0
A17: 5538 | B17: Gin Tanquerey 0% alcohol | C17: 70 cl | F17: 35 | G17: 0
A18: 5543 | B18: Grand Marnier Cordon Rouge | C18: 70 cl | F18: 55 | G18: 0
A19: 5756 | B19: Grappa Amarone 40° | C19: 70 cl | F19: 59 | G19: 0
A20: 5552 | B20: Japanese Whisky Hakushu 12 Years - Anniversary Bottle | C20: 70 cl | F20: 290 | G20: 0
A21: 5548 | B21: Japanese Whisky Hibiki Harmony | C21: 70 cl | F21: 130 | G21: 0
A22: 5337 | B22: Johny Walker Blue Label | C22: 70 cl | F22: 229 | G22: 0
A23: 5555 | B23: Limoncello 28° Lazzaroni | C23: 50 cl | F23: 42 | G23: 0
A24: 5506 | B24: Lagavulin 08 Years | C24: 70 cl | F24: 63 | G24: 0
A25: 5557 | B25: Noilly Prat | C25: 75 cl | F25: 26 | G25: 0
A26: 5508 | B26: Pimm's | C26: 1 l | F26: 23 | G26: 0
A27: 4365 | B27: Rhum Embargo | C27: 70 cl | F27: 54 | G27: =F27*D27 -> 0
A28: 5560 | B28: Ramos Pinto Porto 10 Ans | C28: 75 cl | F28: 49 | G28: 0
A29: 5572 | B29: Rhum Zacapa Solera | C29: 70 cl | F29: 99 | G29: 0
A30: 5725 | B30: Rhum Zacapa Xo | C30: 70 cl | F30: 179 | G30: 0
A31: 5594 | B31: Scotland The Macallan 12 Years | C31: 70 cl | F31: 155 | G31: 0
A32: 5699 | B32: Tequila Casamigos Anejo | C32: 70 cl | F32: 97 | G32: 0
A33: 5567 | B33: Tequila Casamigos Blanco | C33: 70 cl | F33: 62 | G33: 0
A34: 5629 | B34: Tequila Clase Azul Reposado | C34: 70 cl | F34: 350 | G34: 0
A35: 5511 | B35: Tequila Don Julio 1942 | C35: 70 cl | F35: 350 | G35: 0
A36: 5728 | B36: Tequila Volcan X.A | C36: 70 cl | F36: 290 | G36: 0
A37: 5729 | B37: Tequila Don Julio Reposado | C37: 70 cl | F37: 79 | G37: 0
A38: 5633 | B38: Tequila Mezcal Casamigos | C38: 70 cl | F38: 114 | G38: 0
A39: 5503 | B39: Tequila Patron Reposado | C39: 70 cl | F39: 95 | G39: 0
A40: 5502 | B40: Tequila Patron Anejo | C40: 70 cl | F40: 110 | G40: 0
A41: 5504 | B41: Tequila Patron Platinium | C41: 70 cl | F41: 350 | G41: 0
A42: 5509 | B42: Triple Sec Curacao | C42: 1 l | F42: 21 | G42: 0
A43: 5579 | B43: Vodka Beluga Noble | C43: 70 cl | F43: 59 | G43: 0
A44: 5535 | B44: Vodka Beluga Gold | C44: 70 cl | F44: 180 | G44: 0
A45: 5580 | B45: Vodka Belvedere | C45: 70 cl | F45: 49 | G45: 0
A46: 5517 | B46: Vodka Ciroc Blue | C46: 70 cl | F46: 60 | G46: 0
A47: 5002 | B47: Vodka Ciroc Mango | C47: 70 cl | F47: 60 | G47: 0
A48: 5004 | B48: Vodka Ciroc Red Berry | C48: 70 cl | F48: 60 | G48: 0
A49: 5582 | B49: Vodka Greygoose | C49: 70 cl | F49: 68 | G49: =F49*D49 -> 0
A50: 5510 | B50: Vodka Le Philtre | C50: 70 cl | F50: 61 | G50: 0
A51: Beer | B51: Biere | C51: Conditionning | D51: Qty | F51: Price
A53: 5634 | B53: Corona | C53: 24 x 35.5 cl | F53: 79 | G53: 0
A54: 5635 | B54: Colomba White Corsican Beer | C54: 24 x 25 cl | F54: 56 | G54: 0
A55: 5636 | B55: Desperados | C55: 24 x 33 cl | F55: 89 | G55: 0
A56: 5638 | B56: Heineken Bottles | C56: 24 x 25 cl | F56: 39 | G56: 0
A57: 5704 | B57: Ichnusa | C57: 24 x 33 cl | F57: 49 | G57: 0
A58: 5514 | B58: Peroni Nastro Azzuro | C58: 24 x 25 cl | F58: 69 | G58: 0
A59: 4325 | B59: Pietra Corsican Ipa | C59: 24 x 25 cl | F59: 89 | G59: 0
A60: 5639 | B60: Pietra Corsican Beer Glass Bottles | C60: 24 x 25 cl | F60: 89 | G60: 0
B62: Welcome Page | G62: =SUM(G3:G60) -> 0

Sheet Champagne
A1: Sigem Code | B1: Champagne | C1: Conditionning | D1: Qty | F1: Price
A3: 5605 | B3: Bollinger Brut | C3: 75 cl | F3: 64 | G3: =F3*D3 -> 0
A4: 5606 | B4: Bollinger Rosé | C4: 75 cl | F4: 82 | G4: =F4*D4 -> 0
A5: 5610 | B5: Bollinger Magnum Brut | C5: 1.5 l | F5: 139 | G5: 0
A6: 5609 | B6: Bollinger Magnum Rosé | C6: 1.5 l | F6: 182 | G6: 0
A7: 5611 | B7: Billecart Brut | C7: 75 cl | F7: 59 | G7: 0
A8: 5612 | B8: Billecart Rosé | C8: 75 cl | F8: 84 | G8: 0
A9: 5001 | B9: Dom Perignon Brut 2012 | C9: 75 cl | F9: 390 | G9: 0
A10: 5616 | B10: Dom Perignon Rosé 2006 | C10: 75 cl | F10: 495 | G10: 0
A11: 5618 | B11: Laurent Perrier Brut | C11: 75 cl | F11: 49 | G11: 0
A12: 5619 | B12: Laurent Perrier Rosé | C12: 75 cl | F12: 99 | G12: 0
A13: 5620 | B13: Louis Roederer Crystal Brut | C13: 75 cl | F13: 620 | G13: 0
A14: 5621 | B14: Louis Roederer Crystal Rosé | C14: 75 cl | F14: 320 | G14: 0
A15: 5622 | B15: Louis Roederer Brut | C15: 75 cl | F15: 61 | G15: 0
A16: 5623 | B16: Louis Roederer Rosé | C16: 75 cl | F16: 91 | G16: 0
A17: 5682 | B17: Louis Roederer Blanc | C17: 75 cl | F17: 99 | G17: 0
A18: 5732 | B18: Moët & Chandon Ice Impérial | C18: 75 cl | F18: 71 | G18: 0
A19: 5628 | B19: Moët & Chandon Reserve Impérial | C19: 75 cl | F19: 59 | G19: 0
A20: 5624 | B20: Ruinart Brut Blanc De Blanc | C20: 75 cl | F20: 120 | G20: 0
A21: 4431 | B21: Ruinart Rosé | C21: 75 cl | F21: 120 | G21: 0
A22: 5761 | B22: Veuve Cliquot Brut Carte Jaune | C22: 75 cl | F22: 47 | G22: 0
A23: 5754 | B23: Veuve Cliquot Rosé | C23: 75 cl | F23: 65 | G23: 0
B25: Welcome Page | G25: =SUM(G3:G24) -> 0

Sheet Wine Cellar
A1: Merlot - Bordeaux | B1: Year | C1: Price | D1: Order | E1: Subtotal | F1: Rosé French | G1: Year | H1: Price | I1: Order | J1: Subtotal
A2: Esprit de Pavie | B2: 2018 | C2: 31 | E2: =D2*C2 -> 0 | F2: Whispering Angel | G2: 2024 | H2: 29 | J2: =I2*H2 -> 0
A3: La Siren de Giscours | B3: 2019 | C3: 60 | E3: =D3*C3 -> 0 | F3: Miraval | G3: 2024 | H3: 29 | J3: =I3*H3 -> 0
A4: La Confession | B4: 2016 | C4: 68 | E4: 0 | F4: Ott | G4: 2022 | H4: 33 | J4: 0
A5: La Dominique | B5: 2016 | C5: 97 | E5: 0 | F5: Minuty 281 | G5: 2022 | H5: 60 | J5: 0
A6: Aromes de Pavie | B6: 2016 | C6: 139 | E6: 0 | F6: Minuty Or | G6: 2022 | H6: 35 | J6: 0
A7: Cabernet Sauvignon - Bordeaux | B7: Year | C7: Price | D7: Order | F7: Rosé Magnum 1,5 l | H7: Price | I7: Order
A8: St Estephe De Pez | B8: 2015 | C8: 80 | E8: 0 | F8: Minuty Or | G8: 2022 | H8: 85 | J8: 0
A9: La Croix Beaucaillou | B9: 2010 | C9: 94 | E9: 0 | F9: Minuty 281 | G9: 2022 | H9: 120 | J9: 0
A10: Pichon Comtesse Réserve | B10: 2018 | C10: 87 | E10: 0 | F10: Red Corsican Wine | G10: Year | H10: Price | I10: Order
A11: St Julien Lagrange Grand Cru Classé | B11: 2015 | C11: 110 | E11: 0 | F11: Buzzo Rouge | G11: 2023 | H11: 38 | J11: 0
A12: St Julien Gruaud Larose Grand Cru Classé | B12: 2015 | C12: 145 | E12: 0 | F12: Clo Venturi Rouge | G12: 2025 | H12: 35 | J12: 0
A13: Pinot Noir - Burgundy | B13: Year | C13: Price | D13: Order | F13: Casteddu Saparale Rouge | G13: 2024 | H13: 25 | J13: 0
A14: Les Maysonnier | B14: 2023 | C14: 35 | E14: =D14*C14 -> 0 | F14: Suarte Rouge | G14: 2025 | H14: 59 | J14: 0
A15: Mercurey | B15: 2023 | C15: 62 | E15: 0 | F15: White Corsican Wine | H15: Price | I15: Order
A16: Clos de la Feguine | B16: 2019 | C16: 110 | E16: 0 | F16: Clo Venturi Blanc | G16: 2025 | H16: 39 | J16: 0
A17: Clos des Mouches 1ER Cru | B17: 2018 | C17: 117 | E17: 0 | F17: Buzzo Blanc | G17: 2024 | H17: 29 | J17: 0
A18: 1er cru La Platière | B18: 2018 | C18: 132 | E18: 0 | F18: Suarte Blanc | G18: 2022 | H18: 59 | J18: 0
A19: Chardonnay - Burgundy | B19: Year | C19: Price | D19: Order | F19: Rosé Corsican Wine | H19: Price | I19: Order
A20: St Vincent - V.Girardin | B20: 2022 | C20: 33 | E20: =D20*C20 -> 0 | F20: Buzzo Rose | G20: 2024 | H20: 19 | J20: 0
A21: Chablis Fevre | B21: 2022 | C21: 41 | E21: 0 | F21: Clo Venturi Rose | G21: 2024 | H21: 29 | J21: 0
A22: Pouilly Fuissé Prieur | B22: 2020 | C22: 55 | E22: 0 | F22: Suarte Rose | G22: 2024 | H22: 35 | J22: 0
A23: Chablis 1er Cru Fevre | B23: 2020 | C23: 58 | E23: 0 | F23: Italian Wines | H23: Price | I23: Order
A24: Chablis Grand Cru Blanchot | B24: 2019 | C24: 125 | E24: 0 | F24: Pinot Grigio | G24: White | H24: 54 | J24: 0
A25: Meursault Perrière 1er Cru | B25: 2017 | C25: 132 | E25: =D25*C25 -> 0 | F25: Chianti Peppoli - Red | G25: 2020 | H25: 37 | J25: 0
A26: Chassagne Montrachet | B26: 2022 | C26: 139 | E26: 0 | F26: La Braccesca Montepuiciano - Red | G26: 2019 | H26: 41 | J26: 0
A27: Puligny Montrachet 1 Er Cru Prieur | B27: 2022 | C27: 192 | E27: 0
A28: Sauvignon Blanc - Loire | B28: Year | C28: Price | D28: Order | F28: Prosecco Minos | H28: 19.9 | J28: 0
A29: Chateaux de Sancerre | B29: 2018 | C29: 41 | E29: =D29*C29 -> 0 | F29: Prosecco Valdobbiadene Docg | H29: 16.9 | J29: 0
A30: Pouilly Fumé Langlois / La Doucette | B30: 2023 | C30: 55 | E30: =D30*C30 -> 0
A31: Syrah - Rhône Valley | B31: Year | C31: Price | D31: Order
A32: Crozes-Hermitage Jaboulet | B32: 2018 | C32: 55 | E32: =D32*C32 -> 0
A33: Les Becarses Cote Rotie | B33: 2021 | C33: 108 | E33: =D33*C33 -> 0
E35: =SUM(E2:E33) -> 0 | J35: =SUM(J2:J34) -> 0
F36: Welcome Page
J39: =J35+E35 -> 0

Sheet Soft Drinks Juices Water
A1: Sigem Code | B1: Water | C1: Conditionning | D1: Qty | F1: Price | G1: Subtotal
A3: 4186 | B3: Acqua Panna Bottle - sports cap | C3: 6 x 75 cl | F3: 9.9 | G3: =F3*D3 -> 0
A4: 4181 | B4: Acqua Panna Bottle | C4: 6 x 1,5 l | F4: 12.9 | G4: =F4*D4 -> 0
A5: 4187 | B5: Acqua Panna Bottle | C5: 24 x 50 cl | F5: 36 | G5: 0
A6: 4184 | B6: Fiji Water | C6: 24 x 33 cl | F6: 59 | G6: =F6*D6 -> 0
A7: 4183 | B7: Fiji Water | C7: 24 x 50 cl | F7: 71 | G7: 0
A8: 4182 | B8: Fiji Water | C8: 12 x 1 l | F8: 71 | G8: 0
A9: 6098 | B9: Coco Water Vavai | C9: 12 x 33 cl | F9: 39.9 | G9: 0
A10: 7006 | B10: Local Still Water : Zilia | C10: 6 x 1.5 l | F10: 5.9 | G10: 0
A11: 7002 | B11: Local Still Water : Zilia | C11: 6 x 50 cl | F11: 6.9 | G11: 0
A12: 7023 | B12: Evian Plastic Bottle | C12: 6 x 1 l | F12: 9.9 | G12: 0
A13: 4193 | B13: Evian Plastic Bottle | C13: 24 x 50 cl | F13: 25.9 | G13: 0
A14: 4068 | B14: Evian Plastic Bottle (sport cap) | C14: 12 x 33 cl | F14: 10.9 | G14: 0
A15: 7080 | B15: Orezza Sparkling Water | C15: 6 x 1 l | F15: 13.9 | G15: 0
A16: 7009 | B16: San Pellegrino | C16: 6 x 50 cl | F16: 6.9 | G16: 0
A17: Sigem Code | B17: Drinks | C17: Conditionning | D17: Qty | F17: Price
A19: 4804 | B19: Apple Juice Organic | C19: 75 cl | F19: 4.8 | G19: 0
A20: 5640 | B20: Coca Cola Cans | C20: 24 x 33 cl | F20: 39.9 | G20: 0
A21: 5641 | B21: Coca Cola Zero Cans | C21: 24 x 33 cl | F21: 39.9 | G21: 0
A22: 4208 | B22: Cramberry Juice | C22: 1 l | F22: 4.9 | G22: 0
A23: 4208 | B23: Cramberry Juice Less Sugar | C23: 1 l | F23: 4.9 | G23: 0
A24: 4366 | B24: Cocktail Multifruits (12 Fruits) | C24: 1 l | F24: 7.5 | G24: 0
A25: 4076 | B25: Fanta Orange Cans | C25: 24 x 33 cl | F25: 39.9 | G25: 0
A26: 4717 | B26: Fever Tree Ginger Ale | C26: 24 x 20 cl | F26: 59.9 | G26: 0
A27: 5700 | B27: Fever Tree Tonic | C27: 24 x 20 cl | F27: 59.9 | G27: 0
A28: 4308 | B28: Fever Tree Ginger Beer | C28: 24 x 20 cl | F28: 59.9 | G28: 0
A29: 5683 | B29: Fever Tree Elderflower Tonic Water | C29: 24 x 20 cl | F29: 59.9 | G29: 0
A30: 4306 | B30: Fever Tree Bitter Lemon | C30: 24 x 20 cl | F30: 59.9 | G30: 0 | H30: out of stock
A31: 4309 | B31: Fever Tree Soda Water | C31: 24 x 20 cl | F31: 59.9 | G31: 0
A32: 4209 | B32: Ice Tea Peach | C32: 24 x 33 cl | F32: 39.9 | G32: 0
A33: 4210 | B33: Liptonic | C33: 24 x 33 cl | F33: 39.9 | G33: 0
A34: 4214 | B34: Orangina Cans | C34: 24 x 33 cl | F34: 39.9 | G34: 0
A35: 4455 | B35: Orange Juice Organic | C35: 75 cl | F35: 7.3 | G35: 0
A36: 4493 | B36: Pineaple Juice Organic | C36: 75 cl | F36: 7.4 | G36: 0
A37: 4212 | B37: Perrier Cans | C37: 24 x 33 cl | F37: 29.1 | G37: 0
A38: 4211 | B38: Red Bull | C38: 24 x 25 cl | F38: 72 | G38: 0
A39: Sigem | B39: Milk Vegetal | C39: Poids | D39: Qty | F39: Prix
C40: Weight | F40: Price
A41: 4427 | B41: Almond Milk Organic | C41: 1 l | F41: 6.6 | G41: 0
A42: 4428 | B42: Oat Milk Organic | C42: 1 l | F42: 3.7 | G42: 0
A43: 4863 | B43: Coco Milk | C43: 1 l | F43: 5.5 | G43: 0
A44: 4429 | B44: Soy Milk Organic | C44: 1 l | F44: 4.7 | G44: 0
A45: Sigem Code | B45: Juices " Patrick Font" | C45: Conditionning | D45: Qty | F45: Price
A47: 4810 | B47: Mangue / Mango Organic | C47: 1 l | F47: 9.5 | G47: 0
A48: 4148 | B48: Nectar Poire Williams | C48: 1 l | F48: 8.9 | G48: 0
A49: 4806 | B49: Orange Organic | C49: 1 l | F49: 9.9 | G49: 0
A50: 4809 | B50: Pamplemousse / Grapefruit | C50: 1 l | F50: 9.5 | G50: 0
A51: 4805 | B51: Pomme Rainette / Apple | C51: 1 l | F51: 9.9 | G51: 0
A52: 4811 | B52: Raisin Rouge / Red Grape | C52: 1 l | F52: 9.9 | G52: 0
A53: 4807 | B53: Tomate | C53: 1 l | F53: 6.9 | G53: 0
B55: Welcome Page | G55: =SUM(G3:G53) -> 0

Sheet Wish Lists We'll Look!
A16: Welcome to your Wish List!
A17: Here, you can request special items or ingredients not currently listed.
A18: Some requests may be difficult to source in Corsica, but we will do our best to deliver.
B21: Description | C21: Weight/ Size | D21: Qty
B44: Welcome Page
